Workbook

Sheet Lízing kalkuláció
B1: Arthur Bergmann Lízing Zrt. - lakáslízing kalkulátor | F1: Használati útmutató:
B2: IGÉNYELT LÍZING PARAMÉTEREI | F2: A kékkel keretezett fehér cellák szerkeszthetők. FINANSZÍROZÁS ÖSSZEGÉNEK MEGADÁSA: A saját erő %-os VAGY Ft összegének megadásával lehetséges. Ha mindkét mező ki van töltve, akkor a %-os saját erő alapján számítja a finanszírozott összeget és piros felkiáltójel jelzi, ha az igényelt %-os érték nincs összhangban az igényelt Ft összeggel. VISSZLÍZING: X-el jelölendő. Visszlízing esetén az ingatlan vételára = finanszírozott összeg, a saját erőt üresen kell hagyni, vagy 0-ra állítani. Ha a megadott érték piros, akkor nem felel meg a terméknek, ekkor az ajánlat automatikusan a termékleírás szerinti korlátot tartalmazza az "AJÁNLAT PARAMÉTEREI" alatt. Ha a "Havi lízingdíj" mellett a "Kalkuláció szükséges!" felirat látható, meg kell nyomni a "Kalkuláció!" gombot.
B3: VISSZLÍZING?
B4: Ingatlan vételára | D4: 30000000
B5: Saját erő%
B6: Saját erő Ft | D6: 10000000 | E6: ='""'!E6 -> 
B8: Igényelt finanszírozás összege | D8: ='""'!D8 -> 20000000
B10: Futamidő (év) | D10: 20
B11: Maradványérték % | D11: 0.1
B12: Maradványérték Ft | D12: ='""'!D12 -> 2000000
B14: Arthur Bergmann Lízing Zrt.
B15: LAKÁSLÍZING AJÁNLAT PARAMÉTEREI | E15: Termékleírásban szereplő korlátok:
B16: Ingatlan vételára | D16: ='""'!D16 -> 30000000 | E16: minimum 14.300.000 Ft
B17: Saját erő % | D17: ='""'!D17 -> 0.3333333333 | E17: minimum 30%, visszlízingnél 0
B18: Saját erő Ft | D18: ='""'!D18 -> 10000000
B19: Lízing finanszírozás összege | D19: ='""'!D19 -> 20000000 | E19: minimum 10.000.000 Ft
B20: Maradványérték % | D20: ='""'!D20 -> 0.1 | E20: 10 évig maximum 30%, 15 évig maximum 20%, 20 évig maximum 10%
B21: Maradványérték összege | D21: ='""'!D21 -> 2000000
B22: Éves kamatláb* | D22: ='""'!D22 -> 0.092 | E22: ='kalkulációs feltételek'!A2 -> 2021-08-02 | F22: -án érvényes 1 havi BUBOR alapján
B23: Futamidő években | D23: ='""'!D23 -> 20
B24: Tervezett folyósítás | D24: ='""'!D24 -> 2021-09-10 | E24: ajánlat érvényességi dátuma
B26: LÍZING ÁTTEKINTŐ
B27: Havi lízingdíj | D27: =D38 -> 173408.6228 | E27: =IF(segéd!B3=0,"","Kalkuláció szükséges!") -> Kalkuláció szükséges!
B28: Törlesztések száma | D28: ='""'!D28 -> 240
B29: Kamat összesen | D29: ='""'!D29 -> 27110366.24
B30: Futamidő alatt megfizetett lízingdíjak összege | D30: ='""'!D30 -> 43618069.48
B31: Induláskor fizetendő díjak:
B32: Szerződéskötés díj | D32: ='""'!D31 -> 400000 | E32: 2%, alapja a finanszírozási összeg
B33: Szerződéskötéskor fizetendő illeték | D33: ='""'!D32 -> 600000 | E33: 2%, alapja az ingatlan vételára
B34: Ügyvédi díj | D34: ='""'!D33 -> 150000 | E34: 0,5%, minimum 100.000 Ft, alapja az ingatlan vételára
B35: Értékbecslés és közokirat díja egyedi díjszabás alapján
B37: Esedékesség dátuma | C37: Nyitó tőketartozás összege | D37: Esedékes lízingdíj (és maradványérték) | E37: Lízingdíj tőkerésze | F37: Lízingdíjban foglalt kamat összege | G37: Záró tőketartozás a befizetést követően
A38: ='""'!A38 -> 1 | B38: ='""'!B38 -> 2021-09-15 | C38: ='""'!C38 -> 20000000 | D38: 173408.6228 | E38: ='""'!E38 -> 148283.5048 | F38: ='""'!F38 -> 25125.11805 | G38: ='""'!G38 -> 19851716.5
A39: ='""'!A39 -> 2 | B39: ='""'!B39 -> 2021-10-15 | C39: ='""'!C39 -> 19851716.5 | D39: ='""'!D39 -> 173408.6228 | E39: ='""'!E39 -> 23304.8754 | F39: ='""'!F39 -> 150103.7474 | G39: ='""'!G39 -> 19828411.62
A40: ='""'!A40 -> 3 | B40: ='""'!B40 -> 2021-11-15 | C40: ='""'!C40 -> 19828411.62 | D40: ='""'!D40 -> 173408.6228 | E40: ='""'!E40 -> 18464.0285 | F40: ='""'!F40 -> 154944.5943 | G40: ='""'!G40 -> 19809947.59
A41: ='""'!A41 -> 4 | B41: ='""'!B41 -> 2021-12-15 | C41: ='""'!C41 -> 19809947.59 | D41: ='""'!D41 -> 173408.6228 | E41: ='""'!E41 -> 23620.70043 | F41: ='""'!F41 -> 149787.9224 | G41: ='""'!G41 -> 19786326.89
A42: ='""'!A42 -> 5 | B42: ='""'!B42 -> 2022-01-15 | C42: ='""'!C42 -> 19786326.89 | D42: ='""'!D42 -> 173408.6228 | E42: ='""'!E42 -> 18792.89 | F42: ='""'!F42 -> 154615.7328 | G42: ='""'!G42 -> 19767534
A43: ='""'!A43 -> 6 | B43: ='""'!B43 -> 2022-02-15 | C43: ='""'!C43 -> 19767534 | D43: ='""'!D43 -> 173408.6228 | E43: ='""'!E43 -> 18939.74275 | F43: ='""'!F43 -> 154468.8801 | G43: ='""'!G43 -> 19748594.26
A44: ='""'!A44 -> 7 | B44: ='""'!B44 -> 2022-03-15 | C44: ='""'!C44 -> 19748594.26 | D44: ='""'!D44 -> 173408.6228 | E44: ='""'!E44 -> 34074.57523 | F44: ='""'!F44 -> 139334.0476 | G44: ='""'!G44 -> 19714519.68
A45: ='""'!A45 -> 8 | B45: ='""'!B45 -> 2022-04-15 | C45: ='""'!C45 -> 19714519.68 | D45: ='""'!D45 -> 173408.6228 | E45: ='""'!E45 -> 19354.01103 | F45: ='""'!F45 -> 154054.6118 | G45: ='""'!G45 -> 19695165.67
A46: ='""'!A46 -> 9 | B46: ='""'!B46 -> 2022-05-15 | C46: ='""'!C46 -> 19695165.67 | D46: ='""'!D46 -> 173408.6228 | E46: ='""'!E46 -> 24488.59497 | F46: ='""'!F46 -> 148920.0279 | G46: ='""'!G46 -> 19670677.08
A47: ='""'!A47 -> 10 | B47: ='""'!B47 -> 2022-06-15 | C47: ='""'!C47 -> 19670677.08 | D47: ='""'!D47 -> 173408.6228 | E47: ='""'!E47 -> 19696.60906 | F47: ='""'!F47 -> 153712.0138 | G47: ='""'!G47 -> 19650980.47
A48: ='""'!A48 -> 11 | B48: ='""'!B48 -> 2022-07-15 | C48: ='""'!C48 -> 19650980.47 | D48: ='""'!D48 -> 173408.6228 | E48: ='""'!E48 -> 24822.69025 | F48: ='""'!F48 -> 148585.9326 | G48: ='""'!G48 -> 19626157.78
A49: ='""'!A49 -> 12 | B49: ='""'!B49 -> 2022-08-15 | C49: ='""'!C49 -> 19626157.78 | D49: ='""'!D49 -> 173408.6228 | E49: ='""'!E49 -> 20044.49496 | F49: ='""'!F49 -> 153364.1279 | G49: ='""'!G49 -> 19606113.28
A50: ='""'!A50 -> 13 | B50: ='""'!B50 -> 2022-09-15 | C50: ='""'!C50 -> 19606113.28 | D50: ='""'!D50 -> 173408.6228 | E50: ='""'!E50 -> 20201.12808 | F50: ='""'!F50 -> 153207.4947 | G50: ='""'!G50 -> 19585912.15
A51: ='""'!A51 -> 14 | B51: ='""'!B51 -> 2022-10-15 | C51: ='""'!C51 -> 19585912.15 | D51: ='""'!D51 -> 173408.6228 | E51: ='""'!E51 -> 25314.68789 | F51: ='""'!F51 -> 148093.9349 | G51: ='""'!G51 -> 19560597.47
A52: ='""'!A52 -> 15 | B52: ='""'!B52 -> 2022-11-15 | C52: ='""'!C52 -> 19560597.47 | D52: ='""'!D52 -> 173408.6228 | E52: ='""'!E52 -> 20556.80103 | F52: ='""'!F52 -> 152851.8218 | G52: ='""'!G52 -> 19540040.67
A53: ='""'!A53 -> 16 | B53: ='""'!B53 -> 2022-12-15 | C53: ='""'!C53 -> 19540040.67 | D53: ='""'!D53 -> 173408.6228 | E53: ='""'!E53 -> 25661.53358 | F53: ='""'!F53 -> 147747.0893 | G53: ='""'!G53 -> 19514379.13
A54: ='""'!A54 -> 17 | B54: ='""'!B54 -> 2023-01-15 | C54: ='""'!C54 -> 19514379.13 | D54: ='""'!D54 -> 173408.6228 | E54: ='""'!E54 -> 20917.96365 | F54: ='""'!F54 -> 152490.6592 | G54: ='""'!G54 -> 19493461.17
A55: ='""'!A55 -> 18 | B55: ='""'!B55 -> 2023-02-15 | C55: ='""'!C55 -> 19493461.17 | D55: ='""'!D55 -> 173408.6228 | E55: ='""'!E55 -> 21081.4223 | F55: ='""'!F55 -> 152327.2005 | G55: ='""'!G55 -> 19472379.75
A56: ='""'!A56 -> 19 | B56: ='""'!B56 -> 2023-03-15 | C56: ='""'!C56 -> 19472379.75 | D56: ='""'!D56 -> 173408.6228 | E56: ='""'!E56 -> 36023.37652 | F56: ='""'!F56 -> 137385.2463 | G56: ='""'!G56 -> 19436356.37
A57: ='""'!A57 -> 20 | B57: ='""'!B57 -> 2023-04-15 | C57: ='""'!C57 -> 19436356.37 | D57: ='""'!D57 -> 173408.6228 | E57: ='""'!E57 -> 21527.65471 | F57: ='""'!F57 -> 151880.9681 | G57: ='""'!G57 -> 19414828.71
A58: ='""'!A58 -> 21 | B58: ='""'!B58 -> 2023-05-15 | C58: ='""'!C58 -> 19414828.71 | D58: ='""'!D58 -> 173408.6228 | E58: ='""'!E58 -> 26608.29217 | F58: ='""'!F58 -> 146800.3307 | G58: ='""'!G58 -> 19388220.42
A59: ='""'!A59 -> 22 | B59: ='""'!B59 -> 2023-06-15 | C59: ='""'!C59 -> 19388220.42 | D59: ='""'!D59 -> 173408.6228 | E59: ='""'!E59 -> 21903.80208 | F59: ='""'!F59 -> 151504.8208 | G59: ='""'!G59 -> 19366316.62
A60: ='""'!A60 -> 23 | B60: ='""'!B60 -> 2023-07-15 | C60: ='""'!C60 -> 19366316.62 | D60: ='""'!D60 -> 173408.6228 | E60: ='""'!E60 -> 26975.10413 | F60: ='""'!F60 -> 146433.5187 | G60: ='""'!G60 -> 19339341.52
A61: ='""'!A61 -> 24 | B61: ='""'!B61 -> 2023-08-15 | C61: ='""'!C61 -> 19339341.52 | D61: ='""'!D61 -> 173408.6228 | E61: ='""'!E61 -> 22285.75513 | F61: ='""'!F61 -> 151122.8677 | G61: ='""'!G61 -> 19317055.76
A62: ='""'!A62 -> 25 | B62: ='""'!B62 -> 2023-09-15 | C62: ='""'!C62 -> 19317055.76 | D62: ='""'!D62 -> 173408.6228 | E62: ='""'!E62 -> 22459.90207 | F62: ='""'!F62 -> 150948.7208 | G62: ='""'!G62 -> 19294595.86
A63: ='""'!A63 -> 26 | B63: ='""'!B63 -> 2023-10-15 | C63: ='""'!C63 -> 19294595.86 | D63: ='""'!D63 -> 173408.6228 | E63: ='""'!E63 -> 27517.40258 | F63: ='""'!F63 -> 145891.2203 | G63: ='""'!G63 -> 19267078.46
A64: ='""'!A64 -> 27 | B64: ='""'!B64 -> 2023-11-15 | C64: ='""'!C64 -> 19267078.46 | D64: ='""'!D64 -> 173408.6228 | E64: ='""'!E64 -> 22850.43831 | F64: ='""'!F64 -> 150558.1845 | G64: ='""'!G64 -> 19244228.02
A65: ='""'!A65 -> 28 | B65: ='""'!B65 -> 2023-12-15 | C65: ='""'!C65 -> 19244228.02 | D65: ='""'!D65 -> 173408.6228 | E65: ='""'!E65 -> 27898.2463 | F65: ='""'!F65 -> 145510.3765 | G65: ='""'!G65 -> 19216329.77
A66: ='""'!A66 -> 29 | B66: ='""'!B66 -> 2024-01-15 | C66: ='""'!C66 -> 19216329.77 | D66: ='""'!D66 -> 173408.6228 | E66: ='""'!E66 -> 23247.00231 | F66: ='""'!F66 -> 150161.6205 | G66: ='""'!G66 -> 19193082.77
A67: ='""'!A67 -> 30 | B67: ='""'!B67 -> 2024-02-15 | C67: ='""'!C67 -> 19193082.77 | D67: ='""'!D67 -> 173408.6228 | E67: ='""'!E67 -> 23428.6607 | F67: ='""'!F67 -> 149979.9621 | G67: ='""'!G67 -> 19169654.11
A68: ='""'!A68 -> 31 | B68: ='""'!B68 -> 2024-03-15 | C68: ='""'!C68 -> 19169654.11 | D68: ='""'!D68 -> 173408.6228 | E68: ='""'!E68 -> 33311.27985 | F68: ='""'!F68 -> 140097.343 | G68: ='""'!G68 -> 19136342.83
A69: ='""'!A69 -> 32 | B69: ='""'!B69 -> 2024-04-15 | C69: ='""'!C69 -> 19136342.83 | D69: ='""'!D69 -> 173408.6228 | E69: ='""'!E69 -> 23872.04201 | F69: ='""'!F69 -> 149536.5808 | G69: ='""'!G69 -> 19112470.79
A70: ='""'!A70 -> 33 | B70: ='""'!B70 -> 2024-05-15 | C70: ='""'!C70 -> 19112470.79 | D70: ='""'!D70 -> 173408.6228 | E70: ='""'!E70 -> 28894.49538 | F70: ='""'!F70 -> 144514.1275 | G70: ='""'!G70 -> 19083576.29
A71: ='""'!A71 -> 34 | B71: ='""'!B71 -> 2024-06-15 | C71: ='""'!C71 -> 19083576.29 | D71: ='""'!D71 -> 173408.6228 | E71: ='""'!E71 -> 24284.37407 | F71: ='""'!F71 -> 149124.2488 | G71: ='""'!G71 -> 19059291.92
A72: ='""'!A72 -> 35 | B72: ='""'!B72 -> 2024-07-15 | C72: ='""'!C72 -> 19059291.92 | D72: ='""'!D72 -> 173408.6228 | E72: ='""'!E72 -> 29296.59399 | F72: ='""'!F72 -> 144112.0288 | G72: ='""'!G72 -> 19029995.32
A73: ='""'!A73 -> 36 | B73: ='""'!B73 -> 2024-08-15 | C73: ='""'!C73 -> 19029995.32 | D73: ='""'!D73 -> 173408.6228 | E73: ='""'!E73 -> 24703.0703 | F73: ='""'!F73 -> 148705.5525 | G73: ='""'!G73 -> 19005292.25
A74: ='""'!A74 -> 37 | B74: ='""'!B74 -> 2024-09-15 | C74: ='""'!C74 -> 19005292.25 | D74: ='""'!D74 -> 173408.6228 | E74: ='""'!E74 -> 24896.10681 | F74: ='""'!F74 -> 148512.516 | G74: ='""'!G74 -> 18980396.15
A75: ='""'!A75 -> 38 | B75: ='""'!B75 -> 2024-10-15 | C75: ='""'!C75 -> 18980396.15 | D75: ='""'!D75 -> 173408.6228 | E75: ='""'!E75 -> 29893.14446 | F75: ='""'!F75 -> 143515.4784 | G75: ='""'!G75 -> 18950503
A76: ='""'!A76 -> 39 | B76: ='""'!B76 -> 2024-11-15 | C76: ='""'!C76 -> 18950503 | D76: ='""'!D76 -> 173408.6228 | E76: ='""'!E76 -> 25324.2449 | F76: ='""'!F76 -> 148084.3779 | G76: ='""'!G76 -> 18925178.76
A77: ='""'!A77 -> 40 | B77: ='""'!B77 -> 2024-12-15 | C77: ='""'!C77 -> 18925178.76 | D77: ='""'!D77 -> 173408.6228 | E77: ='""'!E77 -> 30310.65682 | F77: ='""'!F77 -> 143097.966 | G77: ='""'!G77 -> 18894868.1
A78: ='""'!A78 -> 41 | B78: ='""'!B78 -> 2025-01-15 | C78: ='""'!C78 -> 18894868.1 | D78: ='""'!D78 -> 173408.6228 | E78: ='""'!E78 -> 25758.99113 | F78: ='""'!F78 -> 147649.6317 | G78: ='""'!G78 -> 18869109.11
A79: ='""'!A79 -> 42 | B79: ='""'!B79 -> 2025-02-15 | C79: ='""'!C79 -> 18869109.11 | D79: ='""'!D79 -> 173408.6228 | E79: ='""'!E79 -> 25960.27888 | F79: ='""'!F79 -> 147448.3439 | G79: ='""'!G79 -> 18843148.83
A80: ='""'!A80 -> 43 | B80: ='""'!B80 -> 2025-03-15 | C80: ='""'!C80 -> 18843148.83 | D80: ='""'!D80 -> 173408.6228 | E80: ='""'!E80 -> 40462.84645 | F80: ='""'!F80 -> 132945.7764 | G80: ='""'!G80 -> 18802685.98
A81: ='""'!A81 -> 44 | B81: ='""'!B81 -> 2025-04-15 | C81: ='""'!C81 -> 18802685.98 | D81: ='""'!D81 -> 173408.6228 | E81: ='""'!E81 -> 26479.32723 | F81: ='""'!F81 -> 146929.2956 | G81: ='""'!G81 -> 18776206.66
A82: ='""'!A82 -> 45 | B82: ='""'!B82 -> 2025-05-15 | C82: ='""'!C82 -> 18776206.66 | D82: ='""'!D82 -> 173408.6228 | E82: ='""'!E82 -> 31437.07179 | F82: ='""'!F82 -> 141971.551 | G82: ='""'!G82 -> 18744769.59
A83: ='""'!A83 -> 46 | B83: ='""'!B83 -> 2025-06-15 | C83: ='""'!C83 -> 18744769.59 | D83: ='""'!D83 -> 173408.6228 | E83: ='""'!E83 -> 26931.9017 | F83: ='""'!F83 -> 146476.7211 | G83: ='""'!G83 -> 18717837.68
A84: ='""'!A84 -> 47 | B84: ='""'!B84 -> 2025-07-15 | C84: ='""'!C84 -> 18717837.68 | D84: ='""'!D84 -> 173408.6228 | E84: ='""'!E84 -> 31878.41406 | F84: ='""'!F84 -> 141530.2088 | G84: ='""'!G84 -> 18685959.27
A85: ='""'!A85 -> 48 | B85: ='""'!B85 -> 2025-08-15 | C85: ='""'!C85 -> 18685959.27 | D85: ='""'!D85 -> 173408.6228 | E85: ='""'!E85 -> 27391.46148 | F85: ='""'!F85 -> 146017.1613 | G85: ='""'!G85 -> 18658567.81
A86: ='""'!A86 -> 49 | B86: ='""'!B86 -> 2025-09-15 | C86: ='""'!C86 -> 18658567.81 | D86: ='""'!D86 -> 173408.6228 | E86: ='""'!E86 -> 27605.5058 | F86: ='""'!F86 -> 145803.117 | G86: ='""'!G86 -> 18630962.3
A87: ='""'!A87 -> 50 | B87: ='""'!B87 -> 2025-10-15 | C87: ='""'!C87 -> 18630962.3 | D87: ='""'!D87 -> 173408.6228 | E87: ='""'!E87 -> 32535.30035 | F87: ='""'!F87 -> 140873.3225 | G87: ='""'!G87 -> 18598427
A88: ='""'!A88 -> 51 | B88: ='""'!B88 -> 2025-11-15 | C88: ='""'!C88 -> 18598427 | D88: ='""'!D88 -> 173408.6228 | E88: ='""'!E88 -> 28075.4624 | F88: ='""'!F88 -> 145333.1604 | G88: ='""'!G88 -> 18570351.54
A89: ='""'!A89 -> 52 | B89: ='""'!B89 -> 2025-12-15 | C89: ='""'!C89 -> 18570351.54 | D89: ='""'!D89 -> 173408.6228 | E89: ='""'!E89 -> 32993.59334 | F89: ='""'!F89 -> 140415.0295 | G89: ='""'!G89 -> 18537357.95
A90: ='""'!A90 -> 53 | B90: ='""'!B90 -> 2026-01-15 | C90: ='""'!C90 -> 18537357.95 | D90: ='""'!D90 -> 173408.6228 | E90: ='""'!E90 -> 28552.67259 | F90: ='""'!F90 -> 144855.9502 | G90: ='""'!G90 -> 18508805.27
A91: ='""'!A91 -> 54 | B91: ='""'!B91 -> 2026-02-15 | C91: ='""'!C91 -> 18508805.27 | D91: ='""'!D91 -> 173408.6228 | E91: ='""'!E91 -> 28775.79093 | F91: ='""'!F91 -> 144632.8319 | G91: ='""'!G91 -> 18480029.48
A92: ='""'!A92 -> 55 | B92: ='""'!B92 -> 2026-03-15 | C92: ='""'!C92 -> 18480029.48 | D92: ='""'!D92 -> 173408.6228 | E92: ='""'!E92 -> 43024.79531 | F92: ='""'!F92 -> 130383.8275 | G92: ='""'!G92 -> 18437004.69
A93: ='""'!A93 -> 56 | B93: ='""'!B93 -> 2026-04-15 | C93: ='""'!C93 -> 18437004.69 | D93: ='""'!D93 -> 173408.6228 | E93: ='""'!E93 -> 29336.86021 | F93: ='""'!F93 -> 144071.7626 | G93: ='""'!G93 -> 18407667.83
A94: ='""'!A94 -> 57 | B94: ='""'!B94 -> 2026-05-15 | C94: ='""'!C94 -> 18407667.83 | D94: ='""'!D94 -> 173408.6228 | E94: ='""'!E94 -> 34223.6852 | F94: ='""'!F94 -> 139184.9376 | G94: ='""'!G94 -> 18373444.14
A95: ='""'!A95 -> 58 | B95: ='""'!B95 -> 2026-06-15 | C95: ='""'!C95 -> 18373444.14 | D95: ='""'!D95 -> 173408.6228 | E95: ='""'!E95 -> 29833.53958 | F95: ='""'!F95 -> 143575.0833 | G95: ='""'!G95 -> 18343610.6
A96: ='""'!A96 -> 59 | B96: ='""'!B96 -> 2026-07-15 | C96: ='""'!C96 -> 18343610.6 | D96: ='""'!D96 -> 173408.6228 | E96: ='""'!E96 -> 34708.03775 | F96: ='""'!F96 -> 138700.5851 | G96: ='""'!G96 -> 18308902.56
A97: ='""'!A97 -> 60 | B97: ='""'!B97 -> 2026-08-15 | C97: ='""'!C97 -> 18308902.56 | D97: ='""'!D97 -> 173408.6228 | E97: ='""'!E97 -> 30337.885 | F97: ='""'!F97 -> 143070.7378 | G97: ='""'!G97 -> 18278564.68
A98: ='""'!A98 -> 61 | B98: ='""'!B98 -> 2026-09-15 | C98: ='""'!C98 -> 18278564.68 | D98: ='""'!D98 -> 173408.6228 | E98: ='""'!E98 -> 30574.95347 | F98: ='""'!F98 -> 142833.6694 | G98: ='""'!G98 -> 18247989.73
A99: ='""'!A99 -> 62 | B99: ='""'!B99 -> 2026-10-15 | C99: ='""'!C99 -> 18247989.73 | D99: ='""'!D99 -> 173408.6228 | E99: ='""'!E99 -> 35431.05089 | F99: ='""'!F99 -> 137977.5719 | G99: ='""'!G99 -> 18212558.67
A100: ='""'!A100 -> 63 | B100: ='""'!B100 -> 2026-11-15 | C100: ='""'!C100 -> 18212558.67 | D100: ='""'!D100 -> 173408.6228 | E100: ='""'!E100 -> 31090.74232 | F100: ='""'!F100 -> 142317.8805 | G100: ='""'!G100 -> 18181467.93
A101: ='""'!A101 -> 64 | B101: ='""'!B101 -> 2026-12-15 | C101: ='""'!C101 -> 18181467.93 | D101: ='""'!D101 -> 173408.6228 | E101: ='""'!E101 -> 35934.03865 | F101: ='""'!F101 -> 137474.5842 | G101: ='""'!G101 -> 18145533.89
A102: ='""'!A102 -> 65 | B102: ='""'!B102 -> 2027-01-15 | C102: ='""'!C102 -> 18145533.89 | D102: ='""'!D102 -> 173408.6228 | E102: ='""'!E102 -> 31614.49216 | F102: ='""'!F102 -> 141794.1307 | G102: ='""'!G102 -> 18113919.4
A103: ='""'!A103 -> 66 | B103: ='""'!B103 -> 2027-02-15 | C103: ='""'!C103 -> 18113919.4 | D103: ='""'!D103 -> 173408.6228 | E103: ='""'!E103 -> 31861.53639 | F103: ='""'!F103 -> 141547.0864 | G103: ='""'!G103 -> 18082057.87
A104: ='""'!A104 -> 67 | B104: ='""'!B104 -> 2027-03-15 | C104: ='""'!C104 -> 18082057.87 | D104: ='""'!D104 -> 173408.6228 | E104: ='""'!E104 -> 45832.64054 | F104: ='""'!F104 -> 127575.9823 | G104: ='""'!G104 -> 18036225.22
A105: ='""'!A105 -> 68 | B105: ='""'!B105 -> 2027-04-15 | C105: ='""'!C105 -> 18036225.22 | D105: ='""'!D105 -> 173408.6228 | E105: ='""'!E105 -> 32468.65979 | F105: ='""'!F105 -> 140939.963 | G105: ='""'!G105 -> 18003756.57
A106: ='""'!A106 -> 69 | B106: ='""'!B106 -> 2027-05-15 | C106: ='""'!C106 -> 18003756.57 | D106: ='""'!D106 -> 173408.6228 | E106: ='""'!E106 -> 37277.75834 | F106: ='""'!F106 -> 136130.8645 | G106: ='""'!G106 -> 17966478.81
A107: ='""'!A107 -> 70 | B107: ='""'!B107 -> 2027-06-15 | C107: ='""'!C107 -> 17966478.81 | D107: ='""'!D107 -> 173408.6228 | E107: ='""'!E107 -> 33013.67725 | F107: ='""'!F107 -> 140394.9456 | G107: ='""'!G107 -> 17933465.13
A108: ='""'!A108 -> 71 | B108: ='""'!B108 -> 2027-07-15 | C108: ='""'!C108 -> 17933465.13 | D108: ='""'!D108 -> 173408.6228 | E108: ='""'!E108 -> 37809.2493 | F108: ='""'!F108 -> 135599.3735 | G108: ='""'!G108 -> 17895655.88
A109: ='""'!A109 -> 72 | B109: ='""'!B109 -> 2027-08-15 | C109: ='""'!C109 -> 17895655.88 | D109: ='""'!D109 -> 173408.6228 | E109: ='""'!E109 -> 33567.10683 | F109: ='""'!F109 -> 139841.516 | G109: ='""'!G109 -> 17862088.77
A110: ='""'!A110 -> 73 | B110: ='""'!B110 -> 2027-09-15 | C110: ='""'!C110 -> 17862088.77 | D110: ='""'!D110 -> 173408.6228 | E110: ='""'!E110 -> 33829.40932 | F110: ='""'!F110 -> 139579.2135 | G110: ='""'!G110 -> 17828259.36
A111: ='""'!A111 -> 74 | B111: ='""'!B111 -> 2027-10-15 | C111: ='""'!C111 -> 17828259.36 | D111: ='""'!D111 -> 173408.6228 | E111: ='""'!E111 -> 38604.73616 | F111: ='""'!F111 -> 134803.8867 | G111: ='""'!G111 -> 17789654.63
A112: ='""'!A112 -> 75 | B112: ='""'!B112 -> 2027-11-15 | C112: ='""'!C112 -> 17789654.63 | D112: ='""'!D112 -> 173408.6228 | E112: ='""'!E112 -> 34395.42941 | F112: ='""'!F112 -> 139013.1934 | G112: ='""'!G112 -> 17755259.2
A113: ='""'!A113 -> 76 | B113: ='""'!B113 -> 2027-12-15 | C113: ='""'!C113 -> 17755259.2 | D113: ='""'!D113 -> 173408.6228 | E113: ='""'!E113 -> 39156.7085 | F113: ='""'!F113 -> 134251.9143 | G113: ='""'!G113 -> 17716102.49
A114: ='""'!A114 -> 77 | B114: ='""'!B114 -> 2028-01-15 | C114: ='""'!C114 -> 17716102.49 | D114: ='""'!D114 -> 173408.6228 | E114: ='""'!E114 -> 34970.1858 | F114: ='""'!F114 -> 138438.437 | G114: ='""'!G114 -> 17681132.3
A115: ='""'!A115 -> 78 | B115: ='""'!B115 -> 2028-02-15 | C115: ='""'!C115 -> 17681132.3 | D115: ='""'!D115 -> 173408.6228 | E115: ='""'!E115 -> 35243.45233 | F115: ='""'!F115 -> 138165.1705 | G115: ='""'!G115 -> 17645888.85
A116: ='""'!A116 -> 79 | B116: ='""'!B116 -> 2028-03-15 | C116: ='""'!C116 -> 17645888.85 | D116: ='""'!D116 -> 173408.6228 | E116: ='""'!E116 -> 44447.3944 | F116: ='""'!F116 -> 128961.2284 | G116: ='""'!G116 -> 17601441.46
A117: ='""'!A117 -> 80 | B117: ='""'!B117 -> 2028-04-15 | C117: ='""'!C117 -> 17601441.46 | D117: ='""'!D117 -> 173408.6228 | E117: ='""'!E117 -> 35866.17825 | F117: ='""'!F117 -> 137542.4446 | G117: ='""'!G117 -> 17565575.28
A118: ='""'!A118 -> 81 | B118: ='""'!B118 -> 2028-05-15 | C118: ='""'!C118 -> 17565575.28 | D118: ='""'!D118 -> 173408.6228 | E118: ='""'!E118 -> 40590.95561 | F118: ='""'!F118 -> 132817.6672 | G118: ='""'!G118 -> 17524984.32
A119: ='""'!A119 -> 82 | B119: ='""'!B119 -> 2028-06-15 | C119: ='""'!C119 -> 17524984.32 | D119: ='""'!D119 -> 173408.6228 | E119: ='""'!E119 -> 36463.63506 | F119: ='""'!F119 -> 136944.9878 | G119: ='""'!G119 -> 17488520.69
A120: ='""'!A120 -> 83 | B120: ='""'!B120 -> 2028-07-15 | C120: ='""'!C120 -> 17488520.69 | D120: ='""'!D120 -> 173408.6228 | E120: ='""'!E120 -> 41173.58447 | F120: ='""'!F120 -> 132235.0384 | G120: ='""'!G120 -> 17447347.1
A121: ='""'!A121 -> 84 | B121: ='""'!B121 -> 2028-08-15 | C121: ='""'!C121 -> 17447347.1 | D121: ='""'!D121 -> 173408.6228 | E121: ='""'!E121 -> 37070.31338 | F121: ='""'!F121 -> 136338.3094 | G121: ='""'!G121 -> 17410276.79
A122: ='""'!A122 -> 85 | B122: ='""'!B122 -> 2028-09-15 | C122: ='""'!C122 -> 17410276.79 | D122: ='""'!D122 -> 173408.6228 | E122: ='""'!E122 -> 37359.99088 | F122: ='""'!F122 -> 136048.632 | G122: ='""'!G122 -> 17372916.8
A123: ='""'!A123 -> 86 | B123: ='""'!B123 -> 2028-10-15 | C123: ='""'!C123 -> 17372916.8 | D123: ='""'!D123 -> 173408.6228 | E123: ='""'!E123 -> 42047.69412 | F123: ='""'!F123 -> 131360.9287 | G123: ='""'!G123 -> 17330869.11
A124: ='""'!A124 -> 87 | B124: ='""'!B124 -> 2028-11-15 | C124: ='""'!C124 -> 17330869.11 | D124: ='""'!D124 -> 173408.6228 | E124: ='""'!E124 -> 37980.5041 | F124: ='""'!F124 -> 135428.1187 | G124: ='""'!G124 -> 17292888.6
A125: ='""'!A125 -> 88 | B125: ='""'!B125 -> 2028-12-15 | C125: ='""'!C125 -> 17292888.6 | D125: ='""'!D125 -> 173408.6228 | E125: ='""'!E125 -> 42652.80715 | F125: ='""'!F125 -> 130755.8157 | G125: ='""'!G125 -> 17250235.79
A126: ='""'!A126 -> 89 | B126: ='""'!B126 -> 2029-01-15 | C126: ='""'!C126 -> 17250235.79 | D126: ='""'!D126 -> 173408.6228 | E126: ='""'!E126 -> 38610.5947 | F126: ='""'!F126 -> 134798.0281 | G126: ='""'!G126 -> 17211625.2
A127: ='""'!A127 -> 90 | B127: ='""'!B127 -> 2029-02-15 | C127: ='""'!C127 -> 17211625.2 | D127: ='""'!D127 -> 173408.6228 | E127: ='""'!E127 -> 38912.30837 | F127: ='""'!F127 -> 134496.3145 | G127: ='""'!G127 -> 17172712.89
A128: ='""'!A128 -> 91 | B128: ='""'!B128 -> 2029-03-15 | C128: ='""'!C128 -> 17172712.89 | D128: ='""'!D128 -> 173408.6228 | E128: ='""'!E128 -> 52248.42459 | F128: ='""'!F128 -> 121160.1982 | G128: ='""'!G128 -> 17120464.47
A129: ='""'!A129 -> 92 | B129: ='""'!B129 -> 2029-04-15 | C129: ='""'!C129 -> 17120464.47 | D129: ='""'!D129 -> 173408.6228 | E129: ='""'!E129 -> 39624.6631 | F129: ='""'!F129 -> 133783.9597 | G129: ='""'!G129 -> 17080839.8
A130: ='""'!A130 -> 93 | B130: ='""'!B130 -> 2029-05-15 | C130: ='""'!C130 -> 17080839.8 | D130: ='""'!D130 -> 173408.6228 | E130: ='""'!E130 -> 44256.16066 | F130: ='""'!F130 -> 129152.4622 | G130: ='""'!G130 -> 17036583.64
A131: ='""'!A131 -> 94 | B131: ='""'!B131 -> 2029-06-15 | C131: ='""'!C131 -> 17036583.64 | D131: ='""'!D131 -> 173408.6228 | E131: ='""'!E131 -> 40280.13064 | F131: ='""'!F131 -> 133128.4922 | G131: ='""'!G131 -> 16996303.51
A132: ='""'!A132 -> 95 | B132: ='""'!B132 -> 2029-07-15 | C132: ='""'!C132 -> 16996303.51 | D132: ='""'!D132 -> 173408.6228 | E132: ='""'!E132 -> 44895.3605 | F132: ='""'!F132 -> 128513.2623 | G132: ='""'!G132 -> 16951408.15
A133: ='""'!A133 -> 96 | B133: ='""'!B133 -> 2029-08-15 | C133: ='""'!C133 -> 16951408.15 | D133: ='""'!D133 -> 173408.6228 | E133: ='""'!E133 -> 40945.71507 | F133: ='""'!F133 -> 132462.9078 | G133: ='""'!G133 -> 16910462.44
A134: ='""'!A134 -> 97 | B134: ='""'!B134 -> 2029-09-15 | C134: ='""'!C134 -> 16910462.44 | D134: ='""'!D134 -> 173408.6228 | E134: ='""'!E134 -> 41265.67601 | F134: ='""'!F134 -> 132142.9468 | G134: ='""'!G134 -> 16869196.76
A135: ='""'!A135 -> 98 | B135: ='""'!B135 -> 2029-10-15 | C135: ='""'!C135 -> 16869196.76 | D135: ='""'!D135 -> 173408.6228 | E135: ='""'!E135 -> 45856.44615 | F135: ='""'!F135 -> 127552.1767 | G135: ='""'!G135 -> 16823340.31
A136: ='""'!A136 -> 99 | B136: ='""'!B136 -> 2029-11-15 | C136: ='""'!C136 -> 16823340.31 | D136: ='""'!D136 -> 173408.6228 | E136: ='""'!E136 -> 41946.47193 | F136: ='""'!F136 -> 131462.1509 | G136: ='""'!G136 -> 16781393.84
A137: ='""'!A137 -> 100 | B137: ='""'!B137 -> 2029-12-15 | C137: ='""'!C137 -> 16781393.84 | D137: ='""'!D137 -> 173408.6228 | E137: ='""'!E137 -> 46520.34577 | F137: ='""'!F137 -> 126888.2771 | G137: ='""'!G137 -> 16734873.5
A138: ='""'!A138 -> 101 | B138: ='""'!B138 -> 2030-01-15 | C138: ='""'!C138 -> 16734873.5 | D138: ='""'!D138 -> 173408.6228 | E138: ='""'!E138 -> 42637.77568 | F138: ='""'!F138 -> 130770.8472 | G138: ='""'!G138 -> 16692235.72
A139: ='""'!A139 -> 102 | B139: ='""'!B139 -> 2030-02-15 | C139: ='""'!C139 -> 16692235.72 | D139: ='""'!D139 -> 173408.6228 | E139: ='""'!E139 -> 42970.95884 | F139: ='""'!F139 -> 130437.664 | G139: ='""'!G139 -> 16649264.76
A140: ='""'!A140 -> 103 | B140: ='""'!B140 -> 2030-03-15 | C140: ='""'!C140 -> 16649264.76 | D140: ='""'!D140 -> 173408.6228 | E140: ='""'!E140 -> 55941.55563 | F140: ='""'!F140 -> 117467.0672 | G140: ='""'!G140 -> 16593323.21
A141: ='""'!A141 -> 104 | B141: ='""'!B141 -> 2030-04-15 | C141: ='""'!C141 -> 16593323.21 | D141: ='""'!D141 -> 173408.6228 | E141: ='""'!E141 -> 43743.88809 | F141: ='""'!F141 -> 129664.7347 | G141: ='""'!G141 -> 16549579.32
A142: ='""'!A142 -> 105 | B142: ='""'!B142 -> 2030-05-15 | C142: ='""'!C142 -> 16549579.32 | D142: ='""'!D142 -> 173408.6228 | E142: ='""'!E142 -> 48273.15282 | F142: ='""'!F142 -> 125135.47 | G142: ='""'!G142 -> 16501306.17
A143: ='""'!A143 -> 106 | B143: ='""'!B143 -> 2030-06-15 | C143: ='""'!C143 -> 16501306.17 | D143: ='""'!D143 -> 173408.6228 | E143: ='""'!E143 -> 44462.93425 | F143: ='""'!F143 -> 128945.6886 | G143: ='""'!G143 -> 16456843.23
A144: ='""'!A144 -> 107 | B144: ='""'!B144 -> 2030-07-15 | C144: ='""'!C144 -> 16456843.23 | D144: ='""'!D144 -> 173408.6228 | E144: ='""'!E144 -> 48974.35336 | F144: ='""'!F144 -> 124434.2695 | G144: ='""'!G144 -> 16407868.88
A145: ='""'!A145 -> 108 | B145: ='""'!B145 -> 2030-08-15 | C145: ='""'!C145 -> 16407868.88 | D145: ='""'!D145 -> 173408.6228 | E145: ='""'!E145 -> 45193.07859 | F145: ='""'!F145 -> 128215.5442 | G145: ='""'!G145 -> 16362675.8
A146: ='""'!A146 -> 109 | B146: ='""'!B146 -> 2030-09-15 | C146: ='""'!C146 -> 16362675.8 | D146: ='""'!D146 -> 173408.6228 | E146: ='""'!E146 -> 45546.22958 | F146: ='""'!F146 -> 127862.3933 | G146: ='""'!G146 -> 16317129.57
A147: ='""'!A147 -> 110 | B147: ='""'!B147 -> 2030-10-15 | C147: ='""'!C147 -> 16317129.57 | D147: ='""'!D147 -> 173408.6228 | E147: ='""'!E147 -> 50030.76297 | F147: ='""'!F147 -> 123377.8599 | G147: ='""'!G147 -> 16267098.81
A148: ='""'!A148 -> 111 | B148: ='""'!B148 -> 2030-11-15 | C148: ='""'!C148 -> 16267098.81 | D148: ='""'!D148 -> 173408.6228 | E148: ='""'!E148 -> 46293.09416 | F148: ='""'!F148 -> 127115.5287 | G148: ='""'!G148 -> 16220805.71
A149: ='""'!A149 -> 112 | B149: ='""'!B149 -> 2030-12-15 | C149: ='""'!C149 -> 16220805.71 | D149: ='""'!D149 -> 173408.6228 | E149: ='""'!E149 -> 50759.09152 | F149: ='""'!F149 -> 122649.5313 | G149: ='""'!G149 -> 16170046.62
A150: ='""'!A150 -> 113 | B150: ='""'!B150 -> 2031-01-15 | C150: ='""'!C150 -> 16170046.62 | D150: ='""'!D150 -> 173408.6228 | E150: ='""'!E150 -> 47051.4863 | F150: ='""'!F150 -> 126357.1365 | G150: ='""'!G150 -> 16122995.14
A151: ='""'!A151 -> 114 | B151: ='""'!B151 -> 2031-02-15 | C151: ='""'!C151 -> 16122995.14 | D151: ='""'!D151 -> 173408.6228 | E151: ='""'!E151 -> 47419.1594 | F151: ='""'!F151 -> 125989.4634 | G151: ='""'!G151 -> 16075575.98
A152: ='""'!A152 -> 115 | B152: ='""'!B152 -> 2031-03-15 | C152: ='""'!C152 -> 16075575.98 | D152: ='""'!D152 -> 173408.6228 | E152: ='""'!E152 -> 59989.15414 | F152: ='""'!F152 -> 113419.4687 | G152: ='""'!G152 -> 16015586.82
A153: ='""'!A153 -> 116 | B153: ='""'!B153 -> 2031-04-15 | C153: ='""'!C153 -> 16015586.82 | D153: ='""'!D153 -> 173408.6228 | E153: ='""'!E153 -> 48258.47714 | F153: ='""'!F153 -> 125150.1457 | G153: ='""'!G153 -> 15967328.34
A154: ='""'!A154 -> 117 | B154: ='""'!B154 -> 2031-05-15 | C154: ='""'!C154 -> 15967328.34 | D154: ='""'!D154 -> 173408.6228 | E154: ='""'!E154 -> 52675.69671 | F154: ='""'!F154 -> 120732.9261 | G154: ='""'!G154 -> 15914652.65
A155: ='""'!A155 -> 118 | B155: ='""'!B155 -> 2031-06-15 | C155: ='""'!C155 -> 15914652.65 | D155: ='""'!D155 -> 173408.6228 | E155: ='""'!E155 -> 49047.20419 | F155: ='""'!F155 -> 124361.4186 | G155: ='""'!G155 -> 15865605.44
A156: ='""'!A156 -> 119 | B156: ='""'!B156 -> 2031-07-15 | C156: ='""'!C156 -> 15865605.44 | D156: ='""'!D156 -> 173408.6228 | E156: ='""'!E156 -> 53444.84877 | F156: ='""'!F156 -> 119963.7741 | G156: ='""'!G156 -> 15812160.59
A157: ='""'!A157 -> 120 | B157: ='""'!B157 -> 2031-08-15 | C157: ='""'!C157 -> 15812160.59 | D157: ='""'!D157 -> 173408.6228 | E157: ='""'!E157 -> 49848.10493 | F157: ='""'!F157 -> 123560.5179 | G157: ='""'!G157 -> 15762312.49
A158: ='""'!A158 -> 121 | B158: ='""'!B158 -> 2031-09-15 | C158: ='""'!C158 -> 15762312.49 | D158: ='""'!D158 -> 173408.6228 | E158: ='""'!E158 -> 50237.63156 | F158: ='""'!F158 -> 123170.9913 | G158: ='""'!G158 -> 15712074.86
A159: ='""'!A159 -> 122 | B159: ='""'!B159 -> 2031-10-15 | C159: ='""'!C159 -> 15712074.86 | D159: ='""'!D159 -> 173408.6228 | E159: ='""'!E159 -> 54605.73157 | F159: ='""'!F159 -> 118802.8913 | G159: ='""'!G159 -> 15657469.13
A160: ='""'!A160 -> 123 | B160: ='""'!B160 -> 2031-11-15 | C160: ='""'!C160 -> 15657469.13 | D160: ='""'!D160 -> 173408.6228 | E160: ='""'!E160 -> 51056.90608 | F160: ='""'!F160 -> 122351.7168 | G160: ='""'!G160 -> 15606412.22
A161: ='""'!A161 -> 124 | B161: ='""'!B161 -> 2031-12-15 | C161: ='""'!C161 -> 15606412.22 | D161: ='""'!D161 -> 173408.6228 | E161: ='""'!E161 -> 55404.67296 | F161: ='""'!F161 -> 118003.9499 | G161: ='""'!G161 -> 15551007.55
A162: ='""'!A162 -> 125 | B162: ='""'!B162 -> 2032-01-15 | C162: ='""'!C162 -> 15551007.55 | D162: ='""'!D162 -> 173408.6228 | E162: ='""'!E162 -> 51888.82577 | F162: ='""'!F162 -> 121519.7971 | G162: ='""'!G162 -> 15499118.72
A163: ='""'!A163 -> 126 | B163: ='""'!B163 -> 2032-02-15 | C163: ='""'!C163 -> 15499118.72 | D163: ='""'!D163 -> 173408.6228 | E163: ='""'!E163 -> 52294.29915 | F163: ='""'!F163 -> 121114.3237 | G163: ='""'!G163 -> 15446824.42
A164: ='""'!A164 -> 127 | B164: ='""'!B164 -> 2032-03-15 | C164: ='""'!C164 -> 15446824.42 | D164: ='""'!D164 -> 173408.6228 | E164: ='""'!E164 -> 60518.78941 | F164: ='""'!F164 -> 112889.8334 | G164: ='""'!G164 -> 15386305.63
A165: ='""'!A165 -> 128 | B165: ='""'!B165 -> 2032-04-15 | C165: ='""'!C165 -> 15386305.63 | D165: ='""'!D165 -> 173408.6228 | E165: ='""'!E165 -> 53175.85127 | F165: ='""'!F165 -> 120232.7716 | G165: ='""'!G165 -> 15333129.78
A166: ='""'!A166 -> 129 | B166: ='""'!B166 -> 2032-05-15 | C166: ='""'!C166 -> 15333129.78 | D166: ='""'!D166 -> 173408.6228 | E166: ='""'!E166 -> 57471.02919 | F166: ='""'!F166 -> 115937.5936 | G166: ='""'!G166 -> 15275658.75
A167: ='""'!A167 -> 130 | B167: ='""'!B167 -> 2032-06-15 | C167: ='""'!C167 -> 15275658.75 | D167: ='""'!D167 -> 173408.6228 | E167: ='""'!E167 -> 54040.47605 | F167: ='""'!F167 -> 119368.1468 | G167: ='""'!G167 -> 15221618.28
A168: ='""'!A168 -> 131 | B168: ='""'!B168 -> 2032-07-15 | C168: ='""'!C168 -> 15221618.28 | D168: ='""'!D168 -> 173408.6228 | E168: ='""'!E168 -> 58314.19531 | F168: ='""'!F168 -> 115094.4275 | G168: ='""'!G168 -> 15163304.08
A169: ='""'!A169 -> 132 | B169: ='""'!B169 -> 2032-08-15 | C169: ='""'!C169 -> 15163304.08 | D169: ='""'!D169 -> 173408.6228 | E169: ='""'!E169 -> 54918.44597 | F169: ='""'!F169 -> 118490.1769 | G169: ='""'!G169 -> 15108385.64
A170: ='""'!A170 -> 133 | B170: ='""'!B170 -> 2032-09-15 | C170: ='""'!C170 -> 15108385.64 | D170: ='""'!D170 -> 173408.6228 | E170: ='""'!E170 -> 55347.59362 | F170: ='""'!F170 -> 118061.0292 | G170: ='""'!G170 -> 15053038.04
A171: ='""'!A171 -> 134 | B171: ='""'!B171 -> 2032-10-15 | C171: ='""'!C171 -> 15053038.04 | D171: ='""'!D171 -> 173408.6228 | E171: ='""'!E171 -> 59588.87224 | F171: ='""'!F171 -> 113819.7506 | G171: ='""'!G171 -> 14993449.17
A172: ='""'!A172 -> 135 | B172: ='""'!B172 -> 2032-11-15 | C172: ='""'!C172 -> 14993449.17 | D172: ='""'!D172 -> 173408.6228 | E172: ='""'!E172 -> 56245.73839 | F172: ='""'!F172 -> 117162.8844 | G172: ='""'!G172 -> 14937203.43
A173: ='""'!A173 -> 136 | B173: ='""'!B173 -> 2032-12-15 | C173: ='""'!C173 -> 14937203.43 | D173: ='""'!D173 -> 173408.6228 | E173: ='""'!E173 -> 60464.72643 | F173: ='""'!F173 -> 112943.8964 | G173: ='""'!G173 -> 14876738.7
A174: ='""'!A174 -> 137 | B174: ='""'!B174 -> 2033-01-15 | C174: ='""'!C174 -> 14876738.7 | D174: ='""'!D174 -> 173408.6228 | E174: ='""'!E174 -> 57157.74566 | F174: ='""'!F174 -> 116250.8772 | G174: ='""'!G174 -> 14819580.96
A175: ='""'!A175 -> 138 | B175: ='""'!B175 -> 2033-02-15 | C175: ='""'!C175 -> 14819580.96 | D175: ='""'!D175 -> 173408.6228 | E175: ='""'!E175 -> 57604.39181 | F175: ='""'!F175 -> 115804.231 | G175: ='""'!G175 -> 14761976.57
A176: ='""'!A176 -> 139 | B176: ='""'!B176 -> 2033-03-15 | C176: ='""'!C176 -> 14761976.57 | D176: ='""'!D176 -> 173408.6228 | E176: ='""'!E176 -> 69257.11115 | F176: ='""'!F176 -> 104151.5117 | G176: ='""'!G176 -> 14692719.46
A177: ='""'!A177 -> 140 | B177: ='""'!B177 -> 2033-04-15 | C177: ='""'!C177 -> 14692719.46 | D177: ='""'!D177 -> 173408.6228 | E177: ='""'!E177 -> 58595.72206 | F177: ='""'!F177 -> 114812.9008 | G177: ='""'!G177 -> 14634123.73
A178: ='""'!A178 -> 141 | B178: ='""'!B178 -> 2033-05-15 | C178: ='""'!C178 -> 14634123.73 | D178: ='""'!D178 -> 173408.6228 | E178: ='""'!E178 -> 62756.38712 | F178: ='""'!F178 -> 110652.2357 | G178: ='""'!G178 -> 14571367.35
A179: ='""'!A179 -> 142 | B179: ='""'!B179 -> 2033-06-15 | C179: ='""'!C179 -> 14571367.35 | D179: ='""'!D179 -> 173408.6228 | E179: ='""'!E179 -> 59544.0004 | F179: ='""'!F179 -> 113864.6224 | G179: ='""'!G179 -> 14511823.35
A180: ='""'!A180 -> 143 | B180: ='""'!B180 -> 2033-07-15 | C180: ='""'!C180 -> 14511823.35 | D180: ='""'!D180 -> 173408.6228 | E180: ='""'!E180 -> 63681.13066 | F180: ='""'!F180 -> 109727.4922 | G180: ='""'!G180 -> 14448142.22
A181: ='""'!A181 -> 144 | B181: ='""'!B181 -> 2033-08-15 | C181: ='""'!C181 -> 14448142.22 | D181: ='""'!D181 -> 173408.6228 | E181: ='""'!E181 -> 60506.91505 | F181: ='""'!F181 -> 112901.7078 | G181: ='""'!G181 -> 14387635.3
A182: ='""'!A182 -> 145 | B182: ='""'!B182 -> 2033-09-15 | C182: ='""'!C182 -> 14387635.3 | D182: ='""'!D182 -> 173408.6228 | E182: ='""'!E182 -> 60979.73251 | F182: ='""'!F182 -> 112428.8903 | G182: ='""'!G182 -> 14326655.57
A183: ='""'!A183 -> 146 | B183: ='""'!B183 -> 2033-10-15 | C183: ='""'!C183 -> 14326655.57 | D183: ='""'!D183 -> 173408.6228 | E183: ='""'!E183 -> 65081.23011 | F183: ='""'!F183 -> 108327.3927 | G183: ='""'!G183 -> 14261574.34
A184: ='""'!A184 -> 147 | B184: ='""'!B184 -> 2033-11-15 | C184: ='""'!C184 -> 14261574.34 | D184: ='""'!D184 -> 173408.6228 | E184: ='""'!E184 -> 61964.80712 | F184: ='""'!F184 -> 111443.8157 | G184: ='""'!G184 -> 14199609.53
A185: ='""'!A185 -> 148 | B185: ='""'!B185 -> 2033-12-15 | C185: ='""'!C185 -> 14199609.53 | D185: ='""'!D185 -> 173408.6228 | E185: ='""'!E185 -> 66041.85668 | F185: ='""'!F185 -> 107366.7662 | G185: ='""'!G185 -> 14133567.67
A186: ='""'!A186 -> 149 | B186: ='""'!B186 -> 2034-01-15 | C186: ='""'!C186 -> 14133567.67 | D186: ='""'!D186 -> 173408.6228 | E186: ='""'!E186 -> 62965.08596 | F186: ='""'!F186 -> 110443.5369 | G186: ='""'!G186 -> 14070602.59
A187: ='""'!A187 -> 150 | B187: ='""'!B187 -> 2034-02-15 | C187: ='""'!C187 -> 14070602.59 | D187: ='""'!D187 -> 173408.6228 | E187: ='""'!E187 -> 63457.11224 | F187: ='""'!F187 -> 109951.5106 | G187: ='""'!G187 -> 14007145.48
A188: ='""'!A188 -> 151 | B188: ='""'!B188 -> 2034-03-15 | C188: ='""'!C188 -> 14007145.48 | D188: ='""'!D188 -> 173408.6228 | E188: ='""'!E188 -> 74582.73938 | F188: ='""'!F188 -> 98825.88345 | G188: ='""'!G188 -> 13932562.74
A189: ='""'!A189 -> 152 | B189: ='""'!B189 -> 2034-04-15 | C189: ='""'!C189 -> 13932562.74 | D189: ='""'!D189 -> 173408.6228 | E189: ='""'!E189 -> 64535.79314 | F189: ='""'!F189 -> 108872.8297 | G189: ='""'!G189 -> 13868026.94
A190: ='""'!A190 -> 153 | B190: ='""'!B190 -> 2034-05-15 | C190: ='""'!C190 -> 13868026.94 | D190: ='""'!D190 -> 173408.6228 | E190: ='""'!E190 -> 68549.03478 | F190: ='""'!F190 -> 104859.588 | G190: ='""'!G190 -> 13799477.91
A191: ='""'!A191 -> 154 | B191: ='""'!B191 -> 2034-06-15 | C191: ='""'!C191 -> 13799477.91 | D191: ='""'!D191 -> 173408.6228 | E191: ='""'!E191 -> 65575.75413 | F191: ='""'!F191 -> 107832.8687 | G191: ='""'!G191 -> 13733902.15
A192: ='""'!A192 -> 155 | B192: ='""'!B192 -> 2034-07-15 | C192: ='""'!C192 -> 13733902.15 | D192: ='""'!D192 -> 173408.6228 | E192: ='""'!E192 -> 69563.18555 | F192: ='""'!F192 -> 103845.4373 | G192: ='""'!G192 -> 13664338.97
A193: ='""'!A193 -> 156 | B193: ='""'!B193 -> 2034-08-15 | C193: ='""'!C193 -> 13664338.97 | D193: ='""'!D193 -> 173408.6228 | E193: ='""'!E193 -> 66631.76652 | F193: ='""'!F193 -> 106776.8563 | G193: ='""'!G193 -> 13597707.2
A194: ='""'!A194 -> 157 | B194: ='""'!B194 -> 2034-09-15 | C194: ='""'!C194 -> 13597707.2 | D194: ='""'!D194 -> 173408.6228 | E194: ='""'!E194 -> 67152.44524 | F194: ='""'!F194 -> 106256.1776 | G194: ='""'!G194 -> 13530554.76
A195: ='""'!A195 -> 158 | B195: ='""'!B195 -> 2034-10-15 | C195: ='""'!C195 -> 13530554.76 | D195: ='""'!D195 -> 173408.6228 | E195: ='""'!E195 -> 71100.74561 | F195: ='""'!F195 -> 102307.8772 | G195: ='""'!G195 -> 13459454.01
A196: ='""'!A196 -> 159 | B196: ='""'!B196 -> 2034-11-15 | C196: ='""'!C196 -> 13459454.01 | D196: ='""'!D196 -> 173408.6228 | E196: ='""'!E196 -> 68232.79323 | F196: ='""'!F196 -> 105175.8296 | G196: ='""'!G196 -> 13391221.22
A197: ='""'!A197 -> 160 | B197: ='""'!B197 -> 2034-12-15 | C197: ='""'!C197 -> 13391221.22 | D197: ='""'!D197 -> 173408.6228 | E197: ='""'!E197 -> 72154.28102 | F197: ='""'!F197 -> 101254.3418 | G197: ='""'!G197 -> 13319066.94
A198: ='""'!A198 -> 161 | B198: ='""'!B198 -> 2035-01-15 | C198: ='""'!C198 -> 13319066.94 | D198: ='""'!D198 -> 173408.6228 | E198: ='""'!E198 -> 69329.81596 | F198: ='""'!F198 -> 104078.8069 | G198: ='""'!G198 -> 13249737.12
A199: ='""'!A199 -> 162 | B199: ='""'!B199 -> 2035-02-15 | C199: ='""'!C199 -> 13249737.12 | D199: ='""'!D199 -> 173408.6228 | E199: ='""'!E199 -> 69871.57797 | F199: ='""'!F199 -> 103537.0449 | G199: ='""'!G199 -> 13179865.54
A200: ='""'!A200 -> 163 | B200: ='""'!B200 -> 2035-03-15 | C200: ='""'!C200 -> 13179865.54 | D200: ='""'!D200 -> 173408.6228 | E200: ='""'!E200 -> 80419.52249 | F200: ='""'!F200 -> 92989.10034 | G200: ='""'!G200 -> 13099446.02
A201: ='""'!A201 -> 164 | B201: ='""'!B201 -> 2035-04-15 | C201: ='""'!C201 -> 13099446.02 | D201: ='""'!D201 -> 173408.6228 | E201: ='""'!E201 -> 71045.99345 | F201: ='""'!F201 -> 102362.6294 | G201: ='""'!G201 -> 13028400.03
A202: ='""'!A202 -> 165 | B202: ='""'!B202 -> 2035-05-15 | C202: ='""'!C202 -> 13028400.03 | D202: ='""'!D202 -> 173408.6228 | E202: ='""'!E202 -> 74897.66195 | F202: ='""'!F202 -> 98510.96089 | G202: ='""'!G202 -> 12953502.37
A203: ='""'!A203 -> 166 | B203: ='""'!B203 -> 2035-06-15 | C203: ='""'!C203 -> 12953502.37 | D203: ='""'!D203 -> 173408.6228 | E203: ='""'!E203 -> 72186.43682 | F203: ='""'!F203 -> 101222.186 | G203: ='""'!G203 -> 12881315.93
A204: ='""'!A204 -> 167 | B204: ='""'!B204 -> 2035-07-15 | C204: ='""'!C204 -> 12881315.93 | D204: ='""'!D204 -> 173408.6228 | E204: ='""'!E204 -> 76009.80126 | F204: ='""'!F204 -> 97398.82157 | G204: ='""'!G204 -> 12805306.13
A205: ='""'!A205 -> 168 | B205: ='""'!B205 -> 2035-08-15 | C205: ='""'!C205 -> 12805306.13 | D205: ='""'!D205 -> 173408.6228 | E205: ='""'!E205 -> 73344.48248 | F205: ='""'!F205 -> 100064.1404 | G205: ='""'!G205 -> 12731961.65
... 134 more rows

Sheet "" (hidden)
B1: Arthur Bergmann Lízing Zrt. - lakáslízing kalkulátor
B2: IGÉNYELT LÍZING PARAMÉTEREI
B3: VISSZLÍZING? | C3: ='Lízing kalkuláció'!C3 -> 0
B4: Ingatlan vételára | D4: ='Lízing kalkuláció'!D4 -> 30000000
B5: Saját erő% | D5: ='Lízing kalkuláció'!D5 -> 0
B6: Saját erő Ft | D6: ='Lízing kalkuláció'!D6 -> 10000000 | E6: =IF('Lízing kalkuláció'!D6>0,IF('Lízing kalkuláció'!D5>0,IF(D4*D5=D6,"","!"),""),"") -> 
B8: Finanszírozott összeg | D8: =IF(D5>0,D4-D4*D5,D4-D6) -> 20000000
B10: Futamidő (év) | D10: ='Lízing kalkuláció'!D10 -> 20
B11: Maradványérték % | D11: ='Lízing kalkuláció'!D11 -> 0.1
B12: Maradványérték Ft | D12: =D8*D11 -> 2000000
B14: Arthur Bergmann Lízing Zrt.
B15: LAKÁSLÍZING AJÁNLAT PARAMÉTEREI | E15: Termékleírásban szereplő korlátok:
B16: Ingatlan vételára | D16: =MAX($D$4,'kalkulációs feltételek'!$B$20) -> 30000000 | E16: minimum 12.500.000 Ft
B17: Saját erő % | D17: =IF(C3>0,0,IF(D5=0,IF(D6>0,MAX(D6/D16,'kalkulációs feltételek'!B16),MAX($D$5,'kalkulációs feltételek'!$B$16)),MAX($D$5,'kalkulációs feltételek'!$B$16))) -> 0.3333333333 | E17: minimum 30%
B18: Saját erő Ft | D18: =D16*D17 -> 10000000
B19: Lízing finanszírozás összege | D19: =$D$16*(1-$D$17) -> 20000000 | E19: minimum 10.000.000 Ft
B20: Maradványérték % | D20: =MIN('Lízing kalkuláció'!$D$11,VLOOKUP('Lízing kalkuláció'!$D$23,'kalkulációs feltételek'!$A$10:$B$12,2,1)) -> 0.1 | E20: 10 évig maximum 30%, 15 évig maximum 20%, 20 évig maximum 10%
B21: Maradványérték összege | D21: =$D$19*$D$20 -> 2000000
B22: Éves kamatláb* | D22: ='kalkulációs feltételek'!$B$2+VLOOKUP($D$23,'kalkulációs feltételek'!$A$5:$B$7,2,1) -> 0.092 | E22: ='kalkulációs feltételek'!A2 -> 2021-08-02 | F22: -án érvényes 1 havi BUBOR alapján
B23: Futamidő években | D23: =MIN('Lízing kalkuláció'!$D$10,'kalkulációs feltételek'!$B$14) -> 20
B24: Tervezett folyósítás | D24: =TODAY()+30 -> 2021-09-10 | E24: ajánlat érvényességi dátuma
B26: LÍZING ÁTTEKINTŐ
B27: Havi lízingdíj | D27: =D38 -> 173408.6228 | E27: =IF(segéd!B3=0,"","Kalkuláció szükséges!") -> Kalkuláció szükséges!
B28: Törlesztések száma | D28: =D23*12 -> 240
B29: Kamat összesen | D29: =VLOOKUP("összesen",$B$38:$F$339,5,0) -> 27110366.24
B30: Futamidő alatt megfizetett lízingdíjak összege | D30: =VLOOKUP("összesen",$B$38:$F$339,3,0) -> 43618069.48
B31: Szerződéskötési díj | D31: =D19*'kalkulációs feltételek'!B22 -> 400000 | E31: 2%, alapja a finanszírozási összeg
B32: Szerződéskötéskor fizetendő illeték | D32: =D16*'kalkulációs feltételek'!B23 -> 600000 | E32: 2%, alapja az ingatlan vételára
B33: Ügyvédi díj | D33: =MAX(D16*'kalkulációs feltételek'!B24,'kalkulációs feltételek'!D24) -> 150000 | E33: 0,5%, minimum 100.000 Ft, alapja az ingatlan vételára
B37: Esedékesség dátuma | C37: Nyitó tőketartozás összege | D37: Esedékes lízingdíj (és maradványérték) | E37: Lízingdíj tőkerésze | F37: Lízingdíjban foglalt kamat összege | G37: Záró tőketartozás a befizetést követően
A38: 1 | B38: =VLOOKUP(D24,'kalkulációs feltételek'!$A$27:$B$50,2,1) -> 2021-09-15 | C38: =D19 -> 20000000 | D38: ='Lízing kalkuláció'!D38 -> 173408.6228 | E38: =D38-F38 -> 148283.5048 | F38: =C38*((1+'kalkulációs feltételek'!$A$56)^(B38-D24)-1) -> 25125.11805 | G38: =C38-E38 -> 19851716.5
A39: =IF(A38="","",IF(A38+1<=$D$23*12,A38+1,"")) -> 2 | B39: =IF(A39="",IF(A38 = $D$23*12,"Összesen",""),EDATE(B38,1)) -> 2021-10-15 | C39: =IF($A39="","",G38) -> 19851716.5 | D39: =IF(A39="",IF(A38="","",SUM(D$38:D38)),IF(A39=$D$23*12,D$38+$D$21,D$38)) -> 173408.6228 | E39: =IF($A39="",IF($A38="","",SUM(E$38:E38)),D39-F39) -> 23304.8754 | F39: =IF($A39="",IF($A38="","",SUM(F$38:F38)),C39*((1+'kalkulációs feltételek'!$A$56)^(B39-B38)-1)) -> 150103.7474 | G39: =IF($A39="","",C39-E39) -> 19828411.62
A40: 3 | B40: 2021-11-15 | C40: 19828411.62 | D40: =IF(A40="",IF(A39="","",SUM(D$38:D39)),IF(A40=$D$23*12,D$38+$D$21,D$38)) -> 173408.6228 | E40: =IF($A40="",IF($A39="","",SUM(E$38:E39)),D40-F40) -> 18464.0285 | F40: =IF($A40="",IF($A39="","",SUM(F$38:F39)),C40*((1+'kalkulációs feltételek'!$A$56)^(B40-B39)-1)) -> 154944.5943 | G40: 19809947.59
A41: 4 | B41: 2021-12-15 | C41: 19809947.59 | D41: =IF(A41="",IF(A40="","",SUM(D$38:D40)),IF(A41=$D$23*12,D$38+$D$21,D$38)) -> 173408.6228 | E41: =IF($A41="",IF($A40="","",SUM(E$38:E40)),D41-F41) -> 23620.70043 | F41: =IF($A41="",IF($A40="","",SUM(F$38:F40)),C41*((1+'kalkulációs feltételek'!$A$56)^(B41-B40)-1)) -> 149787.9224 | G41: 19786326.89
A42: 5 | B42: 2022-01-15 | C42: 19786326.89 | D42: =IF(A42="",IF(A41="","",SUM(D$38:D41)),IF(A42=$D$23*12,D$38+$D$21,D$38)) -> 173408.6228 | E42: =IF($A42="",IF($A41="","",SUM(E$38:E41)),D42-F42) -> 18792.89 | F42: =IF($A42="",IF($A41="","",SUM(F$38:F41)),C42*((1+'kalkulációs feltételek'!$A$56)^(B42-B41)-1)) -> 154615.7328 | G42: 19767534
A43: 6 | B43: 2022-02-15 | C43: 19767534 | D43: =IF(A43="",IF(A42="","",SUM(D$38:D42)),IF(A43=$D$23*12,D$38+$D$21,D$38)) -> 173408.6228 | E43: =IF($A43="",IF($A42="","",SUM(E$38:E42)),D43-F43) -> 18939.74275 | F43: =IF($A43="",IF($A42="","",SUM(F$38:F42)),C43*((1+'kalkulációs feltételek'!$A$56)^(B43-B42)-1)) -> 154468.8801 | G43: 19748594.26
A44: 7 | B44: 2022-03-15 | C44: 19748594.26 | D44: =IF(A44="",IF(A43="","",SUM(D$38:D43)),IF(A44=$D$23*12,D$38+$D$21,D$38)) -> 173408.6228 | E44: =IF($A44="",IF($A43="","",SUM(E$38:E43)),D44-F44) -> 34074.57523 | F44: =IF($A44="",IF($A43="","",SUM(F$38:F43)),C44*((1+'kalkulációs feltételek'!$A$56)^(B44-B43)-1)) -> 139334.0476 | G44: 19714519.68
A45: 8 | B45: 2022-04-15 | C45: 19714519.68 | D45: =IF(A45="",IF(A44="","",SUM(D$38:D44)),IF(A45=$D$23*12,D$38+$D$21,D$38)) -> 173408.6228 | E45: =IF($A45="",IF($A44="","",SUM(E$38:E44)),D45-F45) -> 19354.01103 | F45: =IF($A45="",IF($A44="","",SUM(F$38:F44)),C45*((1+'kalkulációs feltételek'!$A$56)^(B45-B44)-1)) -> 154054.6118 | G45: 19695165.67
A46: 9 | B46: 2022-05-15 | C46: 19695165.67 | D46: =IF(A46="",IF(A45="","",SUM(D$38:D45)),IF(A46=$D$23*12,D$38+$D$21,D$38)) -> 173408.6228 | E46: =IF($A46="",IF($A45="","",SUM(E$38:E45)),D46-F46) -> 24488.59497 | F46: =IF($A46="",IF($A45="","",SUM(F$38:F45)),C46*((1+'kalkulációs feltételek'!$A$56)^(B46-B45)-1)) -> 148920.0279 | G46: 19670677.08
A47: 10 | B47: 2022-06-15 | C47: 19670677.08 | D47: =IF(A47="",IF(A46="","",SUM(D$38:D46)),IF(A47=$D$23*12,D$38+$D$21,D$38)) -> 173408.6228 | E47: =IF($A47="",IF($A46="","",SUM(E$38:E46)),D47-F47) -> 19696.60906 | F47: =IF($A47="",IF($A46="","",SUM(F$38:F46)),C47*((1+'kalkulációs feltételek'!$A$56)^(B47-B46)-1)) -> 153712.0138 | G47: 19650980.47
A48: 11 | B48: 2022-07-15 | C48: 19650980.47 | D48: =IF(A48="",IF(A47="","",SUM(D$38:D47)),IF(A48=$D$23*12,D$38+$D$21,D$38)) -> 173408.6228 | E48: =IF($A48="",IF($A47="","",SUM(E$38:E47)),D48-F48) -> 24822.69025 | F48: =IF($A48="",IF($A47="","",SUM(F$38:F47)),C48*((1+'kalkulációs feltételek'!$A$56)^(B48-B47)-1)) -> 148585.9326 | G48: 19626157.78
A49: 12 | B49: 2022-08-15 | C49: 19626157.78 | D49: =IF(A49="",IF(A48="","",SUM(D$38:D48)),IF(A49=$D$23*12,D$38+$D$21,D$38)) -> 173408.6228 | E49: =IF($A49="",IF($A48="","",SUM(E$38:E48)),D49-F49) -> 20044.49496 | F49: =IF($A49="",IF($A48="","",SUM(F$38:F48)),C49*((1+'kalkulációs feltételek'!$A$56)^(B49-B48)-1)) -> 153364.1279 | G49: 19606113.28
A50: 13 | B50: 2022-09-15 | C50: 19606113.28 | D50: =IF(A50="",IF(A49="","",SUM(D$38:D49)),IF(A50=$D$23*12,D$38+$D$21,D$38)) -> 173408.6228 | E50: =IF($A50="",IF($A49="","",SUM(E$38:E49)),D50-F50) -> 20201.12808 | F50: =IF($A50="",IF($A49="","",SUM(F$38:F49)),C50*((1+'kalkulációs feltételek'!$A$56)^(B50-B49)-1)) -> 153207.4947 | G50: 19585912.15
A51: 14 | B51: 2022-10-15 | C51: 19585912.15 | D51: =IF(A51="",IF(A50="","",SUM(D$38:D50)),IF(A51=$D$23*12,D$38+$D$21,D$38)) -> 173408.6228 | E51: =IF($A51="",IF($A50="","",SUM(E$38:E50)),D51-F51) -> 25314.68789 | F51: =IF($A51="",IF($A50="","",SUM(F$38:F50)),C51*((1+'kalkulációs feltételek'!$A$56)^(B51-B50)-1)) -> 148093.9349 | G51: 19560597.47
A52: 15 | B52: 2022-11-15 | C52: 19560597.47 | D52: =IF(A52="",IF(A51="","",SUM(D$38:D51)),IF(A52=$D$23*12,D$38+$D$21,D$38)) -> 173408.6228 | E52: =IF($A52="",IF($A51="","",SUM(E$38:E51)),D52-F52) -> 20556.80103 | F52: =IF($A52="",IF($A51="","",SUM(F$38:F51)),C52*((1+'kalkulációs feltételek'!$A$56)^(B52-B51)-1)) -> 152851.8218 | G52: 19540040.67
A53: 16 | B53: 2022-12-15 | C53: 19540040.67 | D53: =IF(A53="",IF(A52="","",SUM(D$38:D52)),IF(A53=$D$23*12,D$38+$D$21,D$38)) -> 173408.6228 | E53: =IF($A53="",IF($A52="","",SUM(E$38:E52)),D53-F53) -> 25661.53358 | F53: =IF($A53="",IF($A52="","",SUM(F$38:F52)),C53*((1+'kalkulációs feltételek'!$A$56)^(B53-B52)-1)) -> 147747.0893 | G53: 19514379.13
A54: 17 | B54: 2023-01-15 | C54: 19514379.13 | D54: =IF(A54="",IF(A53="","",SUM(D$38:D53)),IF(A54=$D$23*12,D$38+$D$21,D$38)) -> 173408.6228 | E54: =IF($A54="",IF($A53="","",SUM(E$38:E53)),D54-F54) -> 20917.96365 | F54: =IF($A54="",IF($A53="","",SUM(F$38:F53)),C54*((1+'kalkulációs feltételek'!$A$56)^(B54-B53)-1)) -> 152490.6592 | G54: 19493461.17
A55: 18 | B55: 2023-02-15 | C55: 19493461.17 | D55: =IF(A55="",IF(A54="","",SUM(D$38:D54)),IF(A55=$D$23*12,D$38+$D$21,D$38)) -> 173408.6228 | E55: =IF($A55="",IF($A54="","",SUM(E$38:E54)),D55-F55) -> 21081.4223 | F55: =IF($A55="",IF($A54="","",SUM(F$38:F54)),C55*((1+'kalkulációs feltételek'!$A$56)^(B55-B54)-1)) -> 152327.2005 | G55: 19472379.75
A56: 19 | B56: 2023-03-15 | C56: 19472379.75 | D56: =IF(A56="",IF(A55="","",SUM(D$38:D55)),IF(A56=$D$23*12,D$38+$D$21,D$38)) -> 173408.6228 | E56: =IF($A56="",IF($A55="","",SUM(E$38:E55)),D56-F56) -> 36023.37652 | F56: =IF($A56="",IF($A55="","",SUM(F$38:F55)),C56*((1+'kalkulációs feltételek'!$A$56)^(B56-B55)-1)) -> 137385.2463 | G56: 19436356.37
A57: 20 | B57: 2023-04-15 | C57: 19436356.37 | D57: =IF(A57="",IF(A56="","",SUM(D$38:D56)),IF(A57=$D$23*12,D$38+$D$21,D$38)) -> 173408.6228 | E57: =IF($A57="",IF($A56="","",SUM(E$38:E56)),D57-F57) -> 21527.65471 | F57: =IF($A57="",IF($A56="","",SUM(F$38:F56)),C57*((1+'kalkulációs feltételek'!$A$56)^(B57-B56)-1)) -> 151880.9681 | G57: 19414828.71
A58: 21 | B58: 2023-05-15 | C58: 19414828.71 | D58: =IF(A58="",IF(A57="","",SUM(D$38:D57)),IF(A58=$D$23*12,D$38+$D$21,D$38)) -> 173408.6228 | E58: =IF($A58="",IF($A57="","",SUM(E$38:E57)),D58-F58) -> 26608.29217 | F58: =IF($A58="",IF($A57="","",SUM(F$38:F57)),C58*((1+'kalkulációs feltételek'!$A$56)^(B58-B57)-1)) -> 146800.3307 | G58: 19388220.42
A59: 22 | B59: 2023-06-15 | C59: 19388220.42 | D59: =IF(A59="",IF(A58="","",SUM(D$38:D58)),IF(A59=$D$23*12,D$38+$D$21,D$38)) -> 173408.6228 | E59: =IF($A59="",IF($A58="","",SUM(E$38:E58)),D59-F59) -> 21903.80208 | F59: =IF($A59="",IF($A58="","",SUM(F$38:F58)),C59*((1+'kalkulációs feltételek'!$A$56)^(B59-B58)-1)) -> 151504.8208 | G59: 19366316.62
A60: 23 | B60: 2023-07-15 | C60: 19366316.62 | D60: =IF(A60="",IF(A59="","",SUM(D$38:D59)),IF(A60=$D$23*12,D$38+$D$21,D$38)) -> 173408.6228 | E60: =IF($A60="",IF($A59="","",SUM(E$38:E59)),D60-F60) -> 26975.10413 | F60: =IF($A60="",IF($A59="","",SUM(F$38:F59)),C60*((1+'kalkulációs feltételek'!$A$56)^(B60-B59)-1)) -> 146433.5187 | G60: 19339341.52
A61: 24 | B61: 2023-08-15 | C61: 19339341.52 | D61: =IF(A61="",IF(A60="","",SUM(D$38:D60)),IF(A61=$D$23*12,D$38+$D$21,D$38)) -> 173408.6228 | E61: =IF($A61="",IF($A60="","",SUM(E$38:E60)),D61-F61) -> 22285.75513 | F61: =IF($A61="",IF($A60="","",SUM(F$38:F60)),C61*((1+'kalkulációs feltételek'!$A$56)^(B61-B60)-1)) -> 151122.8677 | G61: 19317055.76
A62: 25 | B62: 2023-09-15 | C62: 19317055.76 | D62: =IF(A62="",IF(A61="","",SUM(D$38:D61)),IF(A62=$D$23*12,D$38+$D$21,D$38)) -> 173408.6228 | E62: =IF($A62="",IF($A61="","",SUM(E$38:E61)),D62-F62) -> 22459.90207 | F62: =IF($A62="",IF($A61="","",SUM(F$38:F61)),C62*((1+'kalkulációs feltételek'!$A$56)^(B62-B61)-1)) -> 150948.7208 | G62: 19294595.86
A63: 26 | B63: 2023-10-15 | C63: 19294595.86 | D63: =IF(A63="",IF(A62="","",SUM(D$38:D62)),IF(A63=$D$23*12,D$38+$D$21,D$38)) -> 173408.6228 | E63: =IF($A63="",IF($A62="","",SUM(E$38:E62)),D63-F63) -> 27517.40258 | F63: =IF($A63="",IF($A62="","",SUM(F$38:F62)),C63*((1+'kalkulációs feltételek'!$A$56)^(B63-B62)-1)) -> 145891.2203 | G63: 19267078.46
A64: 27 | B64: 2023-11-15 | C64: 19267078.46 | D64: =IF(A64="",IF(A63="","",SUM(D$38:D63)),IF(A64=$D$23*12,D$38+$D$21,D$38)) -> 173408.6228 | E64: =IF($A64="",IF($A63="","",SUM(E$38:E63)),D64-F64) -> 22850.43831 | F64: =IF($A64="",IF($A63="","",SUM(F$38:F63)),C64*((1+'kalkulációs feltételek'!$A$56)^(B64-B63)-1)) -> 150558.1845 | G64: 19244228.02
A65: 28 | B65: 2023-12-15 | C65: 19244228.02 | D65: =IF(A65="",IF(A64="","",SUM(D$38:D64)),IF(A65=$D$23*12,D$38+$D$21,D$38)) -> 173408.6228 | E65: =IF($A65="",IF($A64="","",SUM(E$38:E64)),D65-F65) -> 27898.2463 | F65: =IF($A65="",IF($A64="","",SUM(F$38:F64)),C65*((1+'kalkulációs feltételek'!$A$56)^(B65-B64)-1)) -> 145510.3765 | G65: 19216329.77
A66: 29 | B66: 2024-01-15 | C66: 19216329.77 | D66: =IF(A66="",IF(A65="","",SUM(D$38:D65)),IF(A66=$D$23*12,D$38+$D$21,D$38)) -> 173408.6228 | E66: =IF($A66="",IF($A65="","",SUM(E$38:E65)),D66-F66) -> 23247.00231 | F66: =IF($A66="",IF($A65="","",SUM(F$38:F65)),C66*((1+'kalkulációs feltételek'!$A$56)^(B66-B65)-1)) -> 150161.6205 | G66: 19193082.77
A67: 30 | B67: 2024-02-15 | C67: 19193082.77 | D67: =IF(A67="",IF(A66="","",SUM(D$38:D66)),IF(A67=$D$23*12,D$38+$D$21,D$38)) -> 173408.6228 | E67: =IF($A67="",IF($A66="","",SUM(E$38:E66)),D67-F67) -> 23428.6607 | F67: =IF($A67="",IF($A66="","",SUM(F$38:F66)),C67*((1+'kalkulációs feltételek'!$A$56)^(B67-B66)-1)) -> 149979.9621 | G67: 19169654.11
A68: 31 | B68: 2024-03-15 | C68: 19169654.11 | D68: =IF(A68="",IF(A67="","",SUM(D$38:D67)),IF(A68=$D$23*12,D$38+$D$21,D$38)) -> 173408.6228 | E68: =IF($A68="",IF($A67="","",SUM(E$38:E67)),D68-F68) -> 33311.27985 | F68: =IF($A68="",IF($A67="","",SUM(F$38:F67)),C68*((1+'kalkulációs feltételek'!$A$56)^(B68-B67)-1)) -> 140097.343 | G68: 19136342.83
A69: 32 | B69: 2024-04-15 | C69: 19136342.83 | D69: =IF(A69="",IF(A68="","",SUM(D$38:D68)),IF(A69=$D$23*12,D$38+$D$21,D$38)) -> 173408.6228 | E69: =IF($A69="",IF($A68="","",SUM(E$38:E68)),D69-F69) -> 23872.04201 | F69: =IF($A69="",IF($A68="","",SUM(F$38:F68)),C69*((1+'kalkulációs feltételek'!$A$56)^(B69-B68)-1)) -> 149536.5808 | G69: 19112470.79
A70: 33 | B70: 2024-05-15 | C70: 19112470.79 | D70: =IF(A70="",IF(A69="","",SUM(D$38:D69)),IF(A70=$D$23*12,D$38+$D$21,D$38)) -> 173408.6228 | E70: =IF($A70="",IF($A69="","",SUM(E$38:E69)),D70-F70) -> 28894.49538 | F70: =IF($A70="",IF($A69="","",SUM(F$38:F69)),C70*((1+'kalkulációs feltételek'!$A$56)^(B70-B69)-1)) -> 144514.1275 | G70: 19083576.29
A71: 34 | B71: 2024-06-15 | C71: 19083576.29 | D71: =IF(A71="",IF(A70="","",SUM(D$38:D70)),IF(A71=$D$23*12,D$38+$D$21,D$38)) -> 173408.6228 | E71: =IF($A71="",IF($A70="","",SUM(E$38:E70)),D71-F71) -> 24284.37407 | F71: =IF($A71="",IF($A70="","",SUM(F$38:F70)),C71*((1+'kalkulációs feltételek'!$A$56)^(B71-B70)-1)) -> 149124.2488 | G71: 19059291.92
A72: 35 | B72: 2024-07-15 | C72: 19059291.92 | D72: =IF(A72="",IF(A71="","",SUM(D$38:D71)),IF(A72=$D$23*12,D$38+$D$21,D$38)) -> 173408.6228 | E72: =IF($A72="",IF($A71="","",SUM(E$38:E71)),D72-F72) -> 29296.59399 | F72: =IF($A72="",IF($A71="","",SUM(F$38:F71)),C72*((1+'kalkulációs feltételek'!$A$56)^(B72-B71)-1)) -> 144112.0288 | G72: 19029995.32
A73: 36 | B73: 2024-08-15 | C73: 19029995.32 | D73: =IF(A73="",IF(A72="","",SUM(D$38:D72)),IF(A73=$D$23*12,D$38+$D$21,D$38)) -> 173408.6228 | E73: =IF($A73="",IF($A72="","",SUM(E$38:E72)),D73-F73) -> 24703.0703 | F73: =IF($A73="",IF($A72="","",SUM(F$38:F72)),C73*((1+'kalkulációs feltételek'!$A$56)^(B73-B72)-1)) -> 148705.5525 | G73: 19005292.25
A74: 37 | B74: 2024-09-15 | C74: 19005292.25 | D74: =IF(A74="",IF(A73="","",SUM(D$38:D73)),IF(A74=$D$23*12,D$38+$D$21,D$38)) -> 173408.6228 | E74: =IF($A74="",IF($A73="","",SUM(E$38:E73)),D74-F74) -> 24896.10681 | F74: =IF($A74="",IF($A73="","",SUM(F$38:F73)),C74*((1+'kalkulációs feltételek'!$A$56)^(B74-B73)-1)) -> 148512.516 | G74: 18980396.15
A75: 38 | B75: 2024-10-15 | C75: 18980396.15 | D75: =IF(A75="",IF(A74="","",SUM(D$38:D74)),IF(A75=$D$23*12,D$38+$D$21,D$38)) -> 173408.6228 | E75: =IF($A75="",IF($A74="","",SUM(E$38:E74)),D75-F75) -> 29893.14446 | F75: =IF($A75="",IF($A74="","",SUM(F$38:F74)),C75*((1+'kalkulációs feltételek'!$A$56)^(B75-B74)-1)) -> 143515.4784 | G75: 18950503
A76: 39 | B76: 2024-11-15 | C76: 18950503 | D76: =IF(A76="",IF(A75="","",SUM(D$38:D75)),IF(A76=$D$23*12,D$38+$D$21,D$38)) -> 173408.6228 | E76: =IF($A76="",IF($A75="","",SUM(E$38:E75)),D76-F76) -> 25324.2449 | F76: =IF($A76="",IF($A75="","",SUM(F$38:F75)),C76*((1+'kalkulációs feltételek'!$A$56)^(B76-B75)-1)) -> 148084.3779 | G76: 18925178.76
A77: 40 | B77: 2024-12-15 | C77: 18925178.76 | D77: =IF(A77="",IF(A76="","",SUM(D$38:D76)),IF(A77=$D$23*12,D$38+$D$21,D$38)) -> 173408.6228 | E77: =IF($A77="",IF($A76="","",SUM(E$38:E76)),D77-F77) -> 30310.65682 | F77: =IF($A77="",IF($A76="","",SUM(F$38:F76)),C77*((1+'kalkulációs feltételek'!$A$56)^(B77-B76)-1)) -> 143097.966 | G77: 18894868.1
A78: 41 | B78: 2025-01-15 | C78: 18894868.1 | D78: =IF(A78="",IF(A77="","",SUM(D$38:D77)),IF(A78=$D$23*12,D$38+$D$21,D$38)) -> 173408.6228 | E78: =IF($A78="",IF($A77="","",SUM(E$38:E77)),D78-F78) -> 25758.99113 | F78: =IF($A78="",IF($A77="","",SUM(F$38:F77)),C78*((1+'kalkulációs feltételek'!$A$56)^(B78-B77)-1)) -> 147649.6317 | G78: 18869109.11
A79: 42 | B79: 2025-02-15 | C79: 18869109.11 | D79: =IF(A79="",IF(A78="","",SUM(D$38:D78)),IF(A79=$D$23*12,D$38+$D$21,D$38)) -> 173408.6228 | E79: =IF($A79="",IF($A78="","",SUM(E$38:E78)),D79-F79) -> 25960.27888 | F79: =IF($A79="",IF($A78="","",SUM(F$38:F78)),C79*((1+'kalkulációs feltételek'!$A$56)^(B79-B78)-1)) -> 147448.3439 | G79: 18843148.83
A80: 43 | B80: 2025-03-15 | C80: 18843148.83 | D80: =IF(A80="",IF(A79="","",SUM(D$38:D79)),IF(A80=$D$23*12,D$38+$D$21,D$38)) -> 173408.6228 | E80: =IF($A80="",IF($A79="","",SUM(E$38:E79)),D80-F80) -> 40462.84645 | F80: =IF($A80="",IF($A79="","",SUM(F$38:F79)),C80*((1+'kalkulációs feltételek'!$A$56)^(B80-B79)-1)) -> 132945.7764 | G80: 18802685.98
A81: 44 | B81: 2025-04-15 | C81: 18802685.98 | D81: =IF(A81="",IF(A80="","",SUM(D$38:D80)),IF(A81=$D$23*12,D$38+$D$21,D$38)) -> 173408.6228 | E81: =IF($A81="",IF($A80="","",SUM(E$38:E80)),D81-F81) -> 26479.32723 | F81: =IF($A81="",IF($A80="","",SUM(F$38:F80)),C81*((1+'kalkulációs feltételek'!$A$56)^(B81-B80)-1)) -> 146929.2956 | G81: 18776206.66
A82: 45 | B82: 2025-05-15 | C82: 18776206.66 | D82: =IF(A82="",IF(A81="","",SUM(D$38:D81)),IF(A82=$D$23*12,D$38+$D$21,D$38)) -> 173408.6228 | E82: =IF($A82="",IF($A81="","",SUM(E$38:E81)),D82-F82) -> 31437.07179 | F82: =IF($A82="",IF($A81="","",SUM(F$38:F81)),C82*((1+'kalkulációs feltételek'!$A$56)^(B82-B81)-1)) -> 141971.551 | G82: 18744769.59
A83: 46 | B83: 2025-06-15 | C83: 18744769.59 | D83: =IF(A83="",IF(A82="","",SUM(D$38:D82)),IF(A83=$D$23*12,D$38+$D$21,D$38)) -> 173408.6228 | E83: =IF($A83="",IF($A82="","",SUM(E$38:E82)),D83-F83) -> 26931.9017 | F83: =IF($A83="",IF($A82="","",SUM(F$38:F82)),C83*((1+'kalkulációs feltételek'!$A$56)^(B83-B82)-1)) -> 146476.7211 | G83: 18717837.68
A84: 47 | B84: 2025-07-15 | C84: 18717837.68 | D84: =IF(A84="",IF(A83="","",SUM(D$38:D83)),IF(A84=$D$23*12,D$38+$D$21,D$38)) -> 173408.6228 | E84: =IF($A84="",IF($A83="","",SUM(E$38:E83)),D84-F84) -> 31878.41406 | F84: =IF($A84="",IF($A83="","",SUM(F$38:F83)),C84*((1+'kalkulációs feltételek'!$A$56)^(B84-B83)-1)) -> 141530.2088 | G84: 18685959.27
A85: 48 | B85: 2025-08-15 | C85: 18685959.27 | D85: =IF(A85="",IF(A84="","",SUM(D$38:D84)),IF(A85=$D$23*12,D$38+$D$21,D$38)) -> 173408.6228 | E85: =IF($A85="",IF($A84="","",SUM(E$38:E84)),D85-F85) -> 27391.46148 | F85: =IF($A85="",IF($A84="","",SUM(F$38:F84)),C85*((1+'kalkulációs feltételek'!$A$56)^(B85-B84)-1)) -> 146017.1613 | G85: 18658567.81
A86: 49 | B86: 2025-09-15 | C86: 18658567.81 | D86: =IF(A86="",IF(A85="","",SUM(D$38:D85)),IF(A86=$D$23*12,D$38+$D$21,D$38)) -> 173408.6228 | E86: =IF($A86="",IF($A85="","",SUM(E$38:E85)),D86-F86) -> 27605.5058 | F86: =IF($A86="",IF($A85="","",SUM(F$38:F85)),C86*((1+'kalkulációs feltételek'!$A$56)^(B86-B85)-1)) -> 145803.117 | G86: 18630962.3
A87: 50 | B87: 2025-10-15 | C87: 18630962.3 | D87: =IF(A87="",IF(A86="","",SUM(D$38:D86)),IF(A87=$D$23*12,D$38+$D$21,D$38)) -> 173408.6228 | E87: =IF($A87="",IF($A86="","",SUM(E$38:E86)),D87-F87) -> 32535.30035 | F87: =IF($A87="",IF($A86="","",SUM(F$38:F86)),C87*((1+'kalkulációs feltételek'!$A$56)^(B87-B86)-1)) -> 140873.3225 | G87: 18598427
A88: 51 | B88: 2025-11-15 | C88: 18598427 | D88: =IF(A88="",IF(A87="","",SUM(D$38:D87)),IF(A88=$D$23*12,D$38+$D$21,D$38)) -> 173408.6228 | E88: =IF($A88="",IF($A87="","",SUM(E$38:E87)),D88-F88) -> 28075.4624 | F88: =IF($A88="",IF($A87="","",SUM(F$38:F87)),C88*((1+'kalkulációs feltételek'!$A$56)^(B88-B87)-1)) -> 145333.1604 | G88: 18570351.54
A89: 52 | B89: 2025-12-15 | C89: 18570351.54 | D89: =IF(A89="",IF(A88="","",SUM(D$38:D88)),IF(A89=$D$23*12,D$38+$D$21,D$38)) -> 173408.6228 | E89: =IF($A89="",IF($A88="","",SUM(E$38:E88)),D89-F89) -> 32993.59334 | F89: =IF($A89="",IF($A88="","",SUM(F$38:F88)),C89*((1+'kalkulációs feltételek'!$A$56)^(B89-B88)-1)) -> 140415.0295 | G89: 18537357.95
A90: 53 | B90: 2026-01-15 | C90: 18537357.95 | D90: =IF(A90="",IF(A89="","",SUM(D$38:D89)),IF(A90=$D$23*12,D$38+$D$21,D$38)) -> 173408.6228 | E90: =IF($A90="",IF($A89="","",SUM(E$38:E89)),D90-F90) -> 28552.67259 | F90: =IF($A90="",IF($A89="","",SUM(F$38:F89)),C90*((1+'kalkulációs feltételek'!$A$56)^(B90-B89)-1)) -> 144855.9502 | G90: 18508805.27
A91: 54 | B91: 2026-02-15 | C91: 18508805.27 | D91: =IF(A91="",IF(A90="","",SUM(D$38:D90)),IF(A91=$D$23*12,D$38+$D$21,D$38)) -> 173408.6228 | E91: =IF($A91="",IF($A90="","",SUM(E$38:E90)),D91-F91) -> 28775.79093 | F91: =IF($A91="",IF($A90="","",SUM(F$38:F90)),C91*((1+'kalkulációs feltételek'!$A$56)^(B91-B90)-1)) -> 144632.8319 | G91: 18480029.48
A92: 55 | B92: 2026-03-15 | C92: 18480029.48 | D92: =IF(A92="",IF(A91="","",SUM(D$38:D91)),IF(A92=$D$23*12,D$38+$D$21,D$38)) -> 173408.6228 | E92: =IF($A92="",IF($A91="","",SUM(E$38:E91)),D92-F92) -> 43024.79531 | F92: =IF($A92="",IF($A91="","",SUM(F$38:F91)),C92*((1+'kalkulációs feltételek'!$A$56)^(B92-B91)-1)) -> 130383.8275 | G92: 18437004.69
A93: 56 | B93: 2026-04-15 | C93: 18437004.69 | D93: =IF(A93="",IF(A92="","",SUM(D$38:D92)),IF(A93=$D$23*12,D$38+$D$21,D$38)) -> 173408.6228 | E93: =IF($A93="",IF($A92="","",SUM(E$38:E92)),D93-F93) -> 29336.86021 | F93: =IF($A93="",IF($A92="","",SUM(F$38:F92)),C93*((1+'kalkulációs feltételek'!$A$56)^(B93-B92)-1)) -> 144071.7626 | G93: 18407667.83
A94: 57 | B94: 2026-05-15 | C94: 18407667.83 | D94: =IF(A94="",IF(A93="","",SUM(D$38:D93)),IF(A94=$D$23*12,D$38+$D$21,D$38)) -> 173408.6228 | E94: =IF($A94="",IF($A93="","",SUM(E$38:E93)),D94-F94) -> 34223.6852 | F94: =IF($A94="",IF($A93="","",SUM(F$38:F93)),C94*((1+'kalkulációs feltételek'!$A$56)^(B94-B93)-1)) -> 139184.9376 | G94: 18373444.14
A95: 58 | B95: 2026-06-15 | C95: 18373444.14 | D95: =IF(A95="",IF(A94="","",SUM(D$38:D94)),IF(A95=$D$23*12,D$38+$D$21,D$38)) -> 173408.6228 | E95: =IF($A95="",IF($A94="","",SUM(E$38:E94)),D95-F95) -> 29833.53958 | F95: =IF($A95="",IF($A94="","",SUM(F$38:F94)),C95*((1+'kalkulációs feltételek'!$A$56)^(B95-B94)-1)) -> 143575.0833 | G95: 18343610.6
A96: 59 | B96: 2026-07-15 | C96: 18343610.6 | D96: =IF(A96="",IF(A95="","",SUM(D$38:D95)),IF(A96=$D$23*12,D$38+$D$21,D$38)) -> 173408.6228 | E96: =IF($A96="",IF($A95="","",SUM(E$38:E95)),D96-F96) -> 34708.03775 | F96: =IF($A96="",IF($A95="","",SUM(F$38:F95)),C96*((1+'kalkulációs feltételek'!$A$56)^(B96-B95)-1)) -> 138700.5851 | G96: 18308902.56
A97: 60 | B97: 2026-08-15 | C97: 18308902.56 | D97: =IF(A97="",IF(A96="","",SUM(D$38:D96)),IF(A97=$D$23*12,D$38+$D$21,D$38)) -> 173408.6228 | E97: =IF($A97="",IF($A96="","",SUM(E$38:E96)),D97-F97) -> 30337.885 | F97: =IF($A97="",IF($A96="","",SUM(F$38:F96)),C97*((1+'kalkulációs feltételek'!$A$56)^(B97-B96)-1)) -> 143070.7378 | G97: 18278564.68
A98: 61 | B98: 2026-09-15 | C98: 18278564.68 | D98: =IF(A98="",IF(A97="","",SUM(D$38:D97)),IF(A98=$D$23*12,D$38+$D$21,D$38)) -> 173408.6228 | E98: =IF($A98="",IF($A97="","",SUM(E$38:E97)),D98-F98) -> 30574.95347 | F98: =IF($A98="",IF($A97="","",SUM(F$38:F97)),C98*((1+'kalkulációs feltételek'!$A$56)^(B98-B97)-1)) -> 142833.6694 | G98: 18247989.73
A99: 62 | B99: 2026-10-15 | C99: 18247989.73 | D99: =IF(A99="",IF(A98="","",SUM(D$38:D98)),IF(A99=$D$23*12,D$38+$D$21,D$38)) -> 173408.6228 | E99: =IF($A99="",IF($A98="","",SUM(E$38:E98)),D99-F99) -> 35431.05089 | F99: =IF($A99="",IF($A98="","",SUM(F$38:F98)),C99*((1+'kalkulációs feltételek'!$A$56)^(B99-B98)-1)) -> 137977.5719 | G99: 18212558.67
A100: 63 | B100: 2026-11-15 | C100: 18212558.67 | D100: =IF(A100="",IF(A99="","",SUM(D$38:D99)),IF(A100=$D$23*12,D$38+$D$21,D$38)) -> 173408.6228 | E100: =IF($A100="",IF($A99="","",SUM(E$38:E99)),D100-F100) -> 31090.74232 | F100: =IF($A100="",IF($A99="","",SUM(F$38:F99)),C100*((1+'kalkulációs feltételek'!$A$56)^(B100-B99)-1)) -> 142317.8805 | G100: 18181467.93
A101: 64 | B101: 2026-12-15 | C101: 18181467.93 | D101: =IF(A101="",IF(A100="","",SUM(D$38:D100)),IF(A101=$D$23*12,D$38+$D$21,D$38)) -> 173408.6228 | E101: =IF($A101="",IF($A100="","",SUM(E$38:E100)),D101-F101) -> 35934.03865 | F101: =IF($A101="",IF($A100="","",SUM(F$38:F100)),C101*((1+'kalkulációs feltételek'!$A$56)^(B101-B100)-1)) -> 137474.5842 | G101: 18145533.89
A102: 65 | B102: 2027-01-15 | C102: 18145533.89 | D102: =IF(A102="",IF(A101="","",SUM(D$38:D101)),IF(A102=$D$23*12,D$38+$D$21,D$38)) -> 173408.6228 | E102: =IF($A102="",IF($A101="","",SUM(E$38:E101)),D102-F102) -> 31614.49216 | F102: =IF($A102="",IF($A101="","",SUM(F$38:F101)),C102*((1+'kalkulációs feltételek'!$A$56)^(B102-B101)-1)) -> 141794.1307 | G102: 18113919.4
A103: =IF(A102="","",IF(A102+1<=$D$23*12,A102+1,"")) -> 66 | B103: =IF(A103="",IF(A102 = $D$23*12,"Összesen",""),EDATE(B102,1)) -> 2027-02-15 | C103: =IF($A103="","",G102) -> 18113919.4 | D103: =IF(A103="",IF(A102="","",SUM(D$38:D102)),IF(A103=$D$23*12,D$38+$D$21,D$38)) -> 173408.6228 | E103: =IF($A103="",IF($A102="","",SUM(E$38:E102)),D103-F103) -> 31861.53639 | F103: =IF($A103="",IF($A102="","",SUM(F$38:F102)),C103*((1+'kalkulációs feltételek'!$A$56)^(B103-B102)-1)) -> 141547.0864 | G103: =IF($A103="","",C103-E103) -> 18082057.87
A104: 67 | B104: 2027-03-15 | C104: 18082057.87 | D104: =IF(A104="",IF(A103="","",SUM(D$38:D103)),IF(A104=$D$23*12,D$38+$D$21,D$38)) -> 173408.6228 | E104: =IF($A104="",IF($A103="","",SUM(E$38:E103)),D104-F104) -> 45832.64054 | F104: =IF($A104="",IF($A103="","",SUM(F$38:F103)),C104*((1+'kalkulációs feltételek'!$A$56)^(B104-B103)-1)) -> 127575.9823 | G104: 18036225.22
A105: 68 | B105: 2027-04-15 | C105: 18036225.22 | D105: =IF(A105="",IF(A104="","",SUM(D$38:D104)),IF(A105=$D$23*12,D$38+$D$21,D$38)) -> 173408.6228 | E105: =IF($A105="",IF($A104="","",SUM(E$38:E104)),D105-F105) -> 32468.65979 | F105: =IF($A105="",IF($A104="","",SUM(F$38:F104)),C105*((1+'kalkulációs feltételek'!$A$56)^(B105-B104)-1)) -> 140939.963 | G105: 18003756.57
A106: 69 | B106: 2027-05-15 | C106: 18003756.57 | D106: =IF(A106="",IF(A105="","",SUM(D$38:D105)),IF(A106=$D$23*12,D$38+$D$21,D$38)) -> 173408.6228 | E106: =IF($A106="",IF($A105="","",SUM(E$38:E105)),D106-F106) -> 37277.75834 | F106: =IF($A106="",IF($A105="","",SUM(F$38:F105)),C106*((1+'kalkulációs feltételek'!$A$56)^(B106-B105)-1)) -> 136130.8645 | G106: 17966478.81
A107: 70 | B107: 2027-06-15 | C107: 17966478.81 | D107: =IF(A107="",IF(A106="","",SUM(D$38:D106)),IF(A107=$D$23*12,D$38+$D$21,D$38)) -> 173408.6228 | E107: =IF($A107="",IF($A106="","",SUM(E$38:E106)),D107-F107) -> 33013.67725 | F107: =IF($A107="",IF($A106="","",SUM(F$38:F106)),C107*((1+'kalkulációs feltételek'!$A$56)^(B107-B106)-1)) -> 140394.9456 | G107: 17933465.13
A108: 71 | B108: 2027-07-15 | C108: 17933465.13 | D108: =IF(A108="",IF(A107="","",SUM(D$38:D107)),IF(A108=$D$23*12,D$38+$D$21,D$38)) -> 173408.6228 | E108: =IF($A108="",IF($A107="","",SUM(E$38:E107)),D108-F108) -> 37809.2493 | F108: =IF($A108="",IF($A107="","",SUM(F$38:F107)),C108*((1+'kalkulációs feltételek'!$A$56)^(B108-B107)-1)) -> 135599.3735 | G108: 17895655.88
A109: 72 | B109: 2027-08-15 | C109: 17895655.88 | D109: =IF(A109="",IF(A108="","",SUM(D$38:D108)),IF(A109=$D$23*12,D$38+$D$21,D$38)) -> 173408.6228 | E109: =IF($A109="",IF($A108="","",SUM(E$38:E108)),D109-F109) -> 33567.10683 | F109: =IF($A109="",IF($A108="","",SUM(F$38:F108)),C109*((1+'kalkulációs feltételek'!$A$56)^(B109-B108)-1)) -> 139841.516 | G109: 17862088.77
A110: 73 | B110: 2027-09-15 | C110: 17862088.77 | D110: =IF(A110="",IF(A109="","",SUM(D$38:D109)),IF(A110=$D$23*12,D$38+$D$21,D$38)) -> 173408.6228 | E110: =IF($A110="",IF($A109="","",SUM(E$38:E109)),D110-F110) -> 33829.40932 | F110: =IF($A110="",IF($A109="","",SUM(F$38:F109)),C110*((1+'kalkulációs feltételek'!$A$56)^(B110-B109)-1)) -> 139579.2135 | G110: 17828259.36
A111: 74 | B111: 2027-10-15 | C111: 17828259.36 | D111: =IF(A111="",IF(A110="","",SUM(D$38:D110)),IF(A111=$D$23*12,D$38+$D$21,D$38)) -> 173408.6228 | E111: =IF($A111="",IF($A110="","",SUM(E$38:E110)),D111-F111) -> 38604.73616 | F111: =IF($A111="",IF($A110="","",SUM(F$38:F110)),C111*((1+'kalkulációs feltételek'!$A$56)^(B111-B110)-1)) -> 134803.8867 | G111: 17789654.63
A112: 75 | B112: 2027-11-15 | C112: 17789654.63 | D112: =IF(A112="",IF(A111="","",SUM(D$38:D111)),IF(A112=$D$23*12,D$38+$D$21,D$38)) -> 173408.6228 | E112: =IF($A112="",IF($A111="","",SUM(E$38:E111)),D112-F112) -> 34395.42941 | F112: =IF($A112="",IF($A111="","",SUM(F$38:F111)),C112*((1+'kalkulációs feltételek'!$A$56)^(B112-B111)-1)) -> 139013.1934 | G112: 17755259.2
A113: 76 | B113: 2027-12-15 | C113: 17755259.2 | D113: =IF(A113="",IF(A112="","",SUM(D$38:D112)),IF(A113=$D$23*12,D$38+$D$21,D$38)) -> 173408.6228 | E113: =IF($A113="",IF($A112="","",SUM(E$38:E112)),D113-F113) -> 39156.7085 | F113: =IF($A113="",IF($A112="","",SUM(F$38:F112)),C113*((1+'kalkulációs feltételek'!$A$56)^(B113-B112)-1)) -> 134251.9143 | G113: 17716102.49
A114: 77 | B114: 2028-01-15 | C114: 17716102.49 | D114: =IF(A114="",IF(A113="","",SUM(D$38:D113)),IF(A114=$D$23*12,D$38+$D$21,D$38)) -> 173408.6228 | E114: =IF($A114="",IF($A113="","",SUM(E$38:E113)),D114-F114) -> 34970.1858 | F114: =IF($A114="",IF($A113="","",SUM(F$38:F113)),C114*((1+'kalkulációs feltételek'!$A$56)^(B114-B113)-1)) -> 138438.437 | G114: 17681132.3
A115: 78 | B115: 2028-02-15 | C115: 17681132.3 | D115: =IF(A115="",IF(A114="","",SUM(D$38:D114)),IF(A115=$D$23*12,D$38+$D$21,D$38)) -> 173408.6228 | E115: =IF($A115="",IF($A114="","",SUM(E$38:E114)),D115-F115) -> 35243.45233 | F115: =IF($A115="",IF($A114="","",SUM(F$38:F114)),C115*((1+'kalkulációs feltételek'!$A$56)^(B115-B114)-1)) -> 138165.1705 | G115: 17645888.85
A116: 79 | B116: 2028-03-15 | C116: 17645888.85 | D116: =IF(A116="",IF(A115="","",SUM(D$38:D115)),IF(A116=$D$23*12,D$38+$D$21,D$38)) -> 173408.6228 | E116: =IF($A116="",IF($A115="","",SUM(E$38:E115)),D116-F116) -> 44447.3944 | F116: =IF($A116="",IF($A115="","",SUM(F$38:F115)),C116*((1+'kalkulációs feltételek'!$A$56)^(B116-B115)-1)) -> 128961.2284 | G116: 17601441.46
A117: 80 | B117: 2028-04-15 | C117: 17601441.46 | D117: =IF(A117="",IF(A116="","",SUM(D$38:D116)),IF(A117=$D$23*12,D$38+$D$21,D$38)) -> 173408.6228 | E117: =IF($A117="",IF($A116="","",SUM(E$38:E116)),D117-F117) -> 35866.17825 | F117: =IF($A117="",IF($A116="","",SUM(F$38:F116)),C117*((1+'kalkulációs feltételek'!$A$56)^(B117-B116)-1)) -> 137542.4446 | G117: 17565575.28
A118: 81 | B118: 2028-05-15 | C118: 17565575.28 | D118: =IF(A118="",IF(A117="","",SUM(D$38:D117)),IF(A118=$D$23*12,D$38+$D$21,D$38)) -> 173408.6228 | E118: =IF($A118="",IF($A117="","",SUM(E$38:E117)),D118-F118) -> 40590.95561 | F118: =IF($A118="",IF($A117="","",SUM(F$38:F117)),C118*((1+'kalkulációs feltételek'!$A$56)^(B118-B117)-1)) -> 132817.6672 | G118: 17524984.32
A119: 82 | B119: 2028-06-15 | C119: 17524984.32 | D119: =IF(A119="",IF(A118="","",SUM(D$38:D118)),IF(A119=$D$23*12,D$38+$D$21,D$38)) -> 173408.6228 | E119: =IF($A119="",IF($A118="","",SUM(E$38:E118)),D119-F119) -> 36463.63506 | F119: =IF($A119="",IF($A118="","",SUM(F$38:F118)),C119*((1+'kalkulációs feltételek'!$A$56)^(B119-B118)-1)) -> 136944.9878 | G119: 17488520.69
A120: 83 | B120: 2028-07-15 | C120: 17488520.69 | D120: =IF(A120="",IF(A119="","",SUM(D$38:D119)),IF(A120=$D$23*12,D$38+$D$21,D$38)) -> 173408.6228 | E120: =IF($A120="",IF($A119="","",SUM(E$38:E119)),D120-F120) -> 41173.58447 | F120: =IF($A120="",IF($A119="","",SUM(F$38:F119)),C120*((1+'kalkulációs feltételek'!$A$56)^(B120-B119)-1)) -> 132235.0384 | G120: 17447347.1
A121: 84 | B121: 2028-08-15 | C121: 17447347.1 | D121: =IF(A121="",IF(A120="","",SUM(D$38:D120)),IF(A121=$D$23*12,D$38+$D$21,D$38)) -> 173408.6228 | E121: =IF($A121="",IF($A120="","",SUM(E$38:E120)),D121-F121) -> 37070.31338 | F121: =IF($A121="",IF($A120="","",SUM(F$38:F120)),C121*((1+'kalkulációs feltételek'!$A$56)^(B121-B120)-1)) -> 136338.3094 | G121: 17410276.79
A122: 85 | B122: 2028-09-15 | C122: 17410276.79 | D122: =IF(A122="",IF(A121="","",SUM(D$38:D121)),IF(A122=$D$23*12,D$38+$D$21,D$38)) -> 173408.6228 | E122: =IF($A122="",IF($A121="","",SUM(E$38:E121)),D122-F122) -> 37359.99088 | F122: =IF($A122="",IF($A121="","",SUM(F$38:F121)),C122*((1+'kalkulációs feltételek'!$A$56)^(B122-B121)-1)) -> 136048.632 | G122: 17372916.8
A123: 86 | B123: 2028-10-15 | C123: 17372916.8 | D123: =IF(A123="",IF(A122="","",SUM(D$38:D122)),IF(A123=$D$23*12,D$38+$D$21,D$38)) -> 173408.6228 | E123: =IF($A123="",IF($A122="","",SUM(E$38:E122)),D123-F123) -> 42047.69412 | F123: =IF($A123="",IF($A122="","",SUM(F$38:F122)),C123*((1+'kalkulációs feltételek'!$A$56)^(B123-B122)-1)) -> 131360.9287 | G123: 17330869.11
A124: 87 | B124: 2028-11-15 | C124: 17330869.11 | D124: =IF(A124="",IF(A123="","",SUM(D$38:D123)),IF(A124=$D$23*12,D$38+$D$21,D$38)) -> 173408.6228 | E124: =IF($A124="",IF($A123="","",SUM(E$38:E123)),D124-F124) -> 37980.5041 | F124: =IF($A124="",IF($A123="","",SUM(F$38:F123)),C124*((1+'kalkulációs feltételek'!$A$56)^(B124-B123)-1)) -> 135428.1187 | G124: 17292888.6
A125: 88 | B125: 2028-12-15 | C125: 17292888.6 | D125: =IF(A125="",IF(A124="","",SUM(D$38:D124)),IF(A125=$D$23*12,D$38+$D$21,D$38)) -> 173408.6228 | E125: =IF($A125="",IF($A124="","",SUM(E$38:E124)),D125-F125) -> 42652.80715 | F125: =IF($A125="",IF($A124="","",SUM(F$38:F124)),C125*((1+'kalkulációs feltételek'!$A$56)^(B125-B124)-1)) -> 130755.8157 | G125: 17250235.79
A126: 89 | B126: 2029-01-15 | C126: 17250235.79 | D126: =IF(A126="",IF(A125="","",SUM(D$38:D125)),IF(A126=$D$23*12,D$38+$D$21,D$38)) -> 173408.6228 | E126: =IF($A126="",IF($A125="","",SUM(E$38:E125)),D126-F126) -> 38610.5947 | F126: =IF($A126="",IF($A125="","",SUM(F$38:F125)),C126*((1+'kalkulációs feltételek'!$A$56)^(B126-B125)-1)) -> 134798.0281 | G126: 17211625.2
A127: 90 | B127: 2029-02-15 | C127: 17211625.2 | D127: =IF(A127="",IF(A126="","",SUM(D$38:D126)),IF(A127=$D$23*12,D$38+$D$21,D$38)) -> 173408.6228 | E127: =IF($A127="",IF($A126="","",SUM(E$38:E126)),D127-F127) -> 38912.30837 | F127: =IF($A127="",IF($A126="","",SUM(F$38:F126)),C127*((1+'kalkulációs feltételek'!$A$56)^(B127-B126)-1)) -> 134496.3145 | G127: 17172712.89
A128: 91 | B128: 2029-03-15 | C128: 17172712.89 | D128: =IF(A128="",IF(A127="","",SUM(D$38:D127)),IF(A128=$D$23*12,D$38+$D$21,D$38)) -> 173408.6228 | E128: =IF($A128="",IF($A127="","",SUM(E$38:E127)),D128-F128) -> 52248.42459 | F128: =IF($A128="",IF($A127="","",SUM(F$38:F127)),C128*((1+'kalkulációs feltételek'!$A$56)^(B128-B127)-1)) -> 121160.1982 | G128: 17120464.47
A129: 92 | B129: 2029-04-15 | C129: 17120464.47 | D129: =IF(A129="",IF(A128="","",SUM(D$38:D128)),IF(A129=$D$23*12,D$38+$D$21,D$38)) -> 173408.6228 | E129: =IF($A129="",IF($A128="","",SUM(E$38:E128)),D129-F129) -> 39624.6631 | F129: =IF($A129="",IF($A128="","",SUM(F$38:F128)),C129*((1+'kalkulációs feltételek'!$A$56)^(B129-B128)-1)) -> 133783.9597 | G129: 17080839.8
A130: 93 | B130: 2029-05-15 | C130: 17080839.8 | D130: =IF(A130="",IF(A129="","",SUM(D$38:D129)),IF(A130=$D$23*12,D$38+$D$21,D$38)) -> 173408.6228 | E130: =IF($A130="",IF($A129="","",SUM(E$38:E129)),D130-F130) -> 44256.16066 | F130: =IF($A130="",IF($A129="","",SUM(F$38:F129)),C130*((1+'kalkulációs feltételek'!$A$56)^(B130-B129)-1)) -> 129152.4622 | G130: 17036583.64
A131: 94 | B131: 2029-06-15 | C131: 17036583.64 | D131: =IF(A131="",IF(A130="","",SUM(D$38:D130)),IF(A131=$D$23*12,D$38+$D$21,D$38)) -> 173408.6228 | E131: =IF($A131="",IF($A130="","",SUM(E$38:E130)),D131-F131) -> 40280.13064 | F131: =IF($A131="",IF($A130="","",SUM(F$38:F130)),C131*((1+'kalkulációs feltételek'!$A$56)^(B131-B130)-1)) -> 133128.4922 | G131: 16996303.51
A132: 95 | B132: 2029-07-15 | C132: 16996303.51 | D132: =IF(A132="",IF(A131="","",SUM(D$38:D131)),IF(A132=$D$23*12,D$38+$D$21,D$38)) -> 173408.6228 | E132: =IF($A132="",IF($A131="","",SUM(E$38:E131)),D132-F132) -> 44895.3605 | F132: =IF($A132="",IF($A131="","",SUM(F$38:F131)),C132*((1+'kalkulációs feltételek'!$A$56)^(B132-B131)-1)) -> 128513.2623 | G132: 16951408.15
A133: 96 | B133: 2029-08-15 | C133: 16951408.15 | D133: =IF(A133="",IF(A132="","",SUM(D$38:D132)),IF(A133=$D$23*12,D$38+$D$21,D$38)) -> 173408.6228 | E133: =IF($A133="",IF($A132="","",SUM(E$38:E132)),D133-F133) -> 40945.71507 | F133: =IF($A133="",IF($A132="","",SUM(F$38:F132)),C133*((1+'kalkulációs feltételek'!$A$56)^(B133-B132)-1)) -> 132462.9078 | G133: 16910462.44
A134: 97 | B134: 2029-09-15 | C134: 16910462.44 | D134: =IF(A134="",IF(A133="","",SUM(D$38:D133)),IF(A134=$D$23*12,D$38+$D$21,D$38)) -> 173408.6228 | E134: =IF($A134="",IF($A133="","",SUM(E$38:E133)),D134-F134) -> 41265.67601 | F134: =IF($A134="",IF($A133="","",SUM(F$38:F133)),C134*((1+'kalkulációs feltételek'!$A$56)^(B134-B133)-1)) -> 132142.9468 | G134: 16869196.76
A135: 98 | B135: 2029-10-15 | C135: 16869196.76 | D135: =IF(A135="",IF(A134="","",SUM(D$38:D134)),IF(A135=$D$23*12,D$38+$D$21,D$38)) -> 173408.6228 | E135: =IF($A135="",IF($A134="","",SUM(E$38:E134)),D135-F135) -> 45856.44615 | F135: =IF($A135="",IF($A134="","",SUM(F$38:F134)),C135*((1+'kalkulációs feltételek'!$A$56)^(B135-B134)-1)) -> 127552.1767 | G135: 16823340.31
A136: 99 | B136: 2029-11-15 | C136: 16823340.31 | D136: =IF(A136="",IF(A135="","",SUM(D$38:D135)),IF(A136=$D$23*12,D$38+$D$21,D$38)) -> 173408.6228 | E136: =IF($A136="",IF($A135="","",SUM(E$38:E135)),D136-F136) -> 41946.47193 | F136: =IF($A136="",IF($A135="","",SUM(F$38:F135)),C136*((1+'kalkulációs feltételek'!$A$56)^(B136-B135)-1)) -> 131462.1509 | G136: 16781393.84
A137: 100 | B137: 2029-12-15 | C137: 16781393.84 | D137: =IF(A137="",IF(A136="","",SUM(D$38:D136)),IF(A137=$D$23*12,D$38+$D$21,D$38)) -> 173408.6228 | E137: =IF($A137="",IF($A136="","",SUM(E$38:E136)),D137-F137) -> 46520.34577 | F137: =IF($A137="",IF($A136="","",SUM(F$38:F136)),C137*((1+'kalkulációs feltételek'!$A$56)^(B137-B136)-1)) -> 126888.2771 | G137: 16734873.5
A138: 101 | B138: 2030-01-15 | C138: 16734873.5 | D138: =IF(A138="",IF(A137="","",SUM(D$38:D137)),IF(A138=$D$23*12,D$38+$D$21,D$38)) -> 173408.6228 | E138: =IF($A138="",IF($A137="","",SUM(E$38:E137)),D138-F138) -> 42637.77568 | F138: =IF($A138="",IF($A137="","",SUM(F$38:F137)),C138*((1+'kalkulációs feltételek'!$A$56)^(B138-B137)-1)) -> 130770.8472 | G138: 16692235.72
A139: 102 | B139: 2030-02-15 | C139: 16692235.72 | D139: =IF(A139="",IF(A138="","",SUM(D$38:D138)),IF(A139=$D$23*12,D$38+$D$21,D$38)) -> 173408.6228 | E139: =IF($A139="",IF($A138="","",SUM(E$38:E138)),D139-F139) -> 42970.95884 | F139: =IF($A139="",IF($A138="","",SUM(F$38:F138)),C139*((1+'kalkulációs feltételek'!$A$56)^(B139-B138)-1)) -> 130437.664 | G139: 16649264.76
A140: 103 | B140: 2030-03-15 | C140: 16649264.76 | D140: =IF(A140="",IF(A139="","",SUM(D$38:D139)),IF(A140=$D$23*12,D$38+$D$21,D$38)) -> 173408.6228 | E140: =IF($A140="",IF($A139="","",SUM(E$38:E139)),D140-F140) -> 55941.55563 | F140: =IF($A140="",IF($A139="","",SUM(F$38:F139)),C140*((1+'kalkulációs feltételek'!$A$56)^(B140-B139)-1)) -> 117467.0672 | G140: 16593323.21
A141: 104 | B141: 2030-04-15 | C141: 16593323.21 | D141: =IF(A141="",IF(A140="","",SUM(D$38:D140)),IF(A141=$D$23*12,D$38+$D$21,D$38)) -> 173408.6228 | E141: =IF($A141="",IF($A140="","",SUM(E$38:E140)),D141-F141) -> 43743.88809 | F141: =IF($A141="",IF($A140="","",SUM(F$38:F140)),C141*((1+'kalkulációs feltételek'!$A$56)^(B141-B140)-1)) -> 129664.7347 | G141: 16549579.32
A142: 105 | B142: 2030-05-15 | C142: 16549579.32 | D142: =IF(A142="",IF(A141="","",SUM(D$38:D141)),IF(A142=$D$23*12,D$38+$D$21,D$38)) -> 173408.6228 | E142: =IF($A142="",IF($A141="","",SUM(E$38:E141)),D142-F142) -> 48273.15282 | F142: =IF($A142="",IF($A141="","",SUM(F$38:F141)),C142*((1+'kalkulációs feltételek'!$A$56)^(B142-B141)-1)) -> 125135.47 | G142: 16501306.17
A143: 106 | B143: 2030-06-15 | C143: 16501306.17 | D143: =IF(A143="",IF(A142="","",SUM(D$38:D142)),IF(A143=$D$23*12,D$38+$D$21,D$38)) -> 173408.6228 | E143: =IF($A143="",IF($A142="","",SUM(E$38:E142)),D143-F143) -> 44462.93425 | F143: =IF($A143="",IF($A142="","",SUM(F$38:F142)),C143*((1+'kalkulációs feltételek'!$A$56)^(B143-B142)-1)) -> 128945.6886 | G143: 16456843.23
A144: 107 | B144: 2030-07-15 | C144: 16456843.23 | D144: =IF(A144="",IF(A143="","",SUM(D$38:D143)),IF(A144=$D$23*12,D$38+$D$21,D$38)) -> 173408.6228 | E144: =IF($A144="",IF($A143="","",SUM(E$38:E143)),D144-F144) -> 48974.35336 | F144: =IF($A144="",IF($A143="","",SUM(F$38:F143)),C144*((1+'kalkulációs feltételek'!$A$56)^(B144-B143)-1)) -> 124434.2695 | G144: 16407868.88
A145: 108 | B145: 2030-08-15 | C145: 16407868.88 | D145: =IF(A145="",IF(A144="","",SUM(D$38:D144)),IF(A145=$D$23*12,D$38+$D$21,D$38)) -> 173408.6228 | E145: =IF($A145="",IF($A144="","",SUM(E$38:E144)),D145-F145) -> 45193.07859 | F145: =IF($A145="",IF($A144="","",SUM(F$38:F144)),C145*((1+'kalkulációs feltételek'!$A$56)^(B145-B144)-1)) -> 128215.5442 | G145: 16362675.8
A146: 109 | B146: 2030-09-15 | C146: 16362675.8 | D146: =IF(A146="",IF(A145="","",SUM(D$38:D145)),IF(A146=$D$23*12,D$38+$D$21,D$38)) -> 173408.6228 | E146: =IF($A146="",IF($A145="","",SUM(E$38:E145)),D146-F146) -> 45546.22958 | F146: =IF($A146="",IF($A145="","",SUM(F$38:F145)),C146*((1+'kalkulációs feltételek'!$A$56)^(B146-B145)-1)) -> 127862.3933 | G146: 16317129.57
A147: 110 | B147: 2030-10-15 | C147: 16317129.57 | D147: =IF(A147="",IF(A146="","",SUM(D$38:D146)),IF(A147=$D$23*12,D$38+$D$21,D$38)) -> 173408.6228 | E147: =IF($A147="",IF($A146="","",SUM(E$38:E146)),D147-F147) -> 50030.76297 | F147: =IF($A147="",IF($A146="","",SUM(F$38:F146)),C147*((1+'kalkulációs feltételek'!$A$56)^(B147-B146)-1)) -> 123377.8599 | G147: 16267098.81
A148: 111 | B148: 2030-11-15 | C148: 16267098.81 | D148: =IF(A148="",IF(A147="","",SUM(D$38:D147)),IF(A148=$D$23*12,D$38+$D$21,D$38)) -> 173408.6228 | E148: =IF($A148="",IF($A147="","",SUM(E$38:E147)),D148-F148) -> 46293.09416 | F148: =IF($A148="",IF($A147="","",SUM(F$38:F147)),C148*((1+'kalkulációs feltételek'!$A$56)^(B148-B147)-1)) -> 127115.5287 | G148: 16220805.71
A149: 112 | B149: 2030-12-15 | C149: 16220805.71 | D149: =IF(A149="",IF(A148="","",SUM(D$38:D148)),IF(A149=$D$23*12,D$38+$D$21,D$38)) -> 173408.6228 | E149: =IF($A149="",IF($A148="","",SUM(E$38:E148)),D149-F149) -> 50759.09152 | F149: =IF($A149="",IF($A148="","",SUM(F$38:F148)),C149*((1+'kalkulációs feltételek'!$A$56)^(B149-B148)-1)) -> 122649.5313 | G149: 16170046.62
A150: 113 | B150: 2031-01-15 | C150: 16170046.62 | D150: =IF(A150="",IF(A149="","",SUM(D$38:D149)),IF(A150=$D$23*12,D$38+$D$21,D$38)) -> 173408.6228 | E150: =IF($A150="",IF($A149="","",SUM(E$38:E149)),D150-F150) -> 47051.4863 | F150: =IF($A150="",IF($A149="","",SUM(F$38:F149)),C150*((1+'kalkulációs feltételek'!$A$56)^(B150-B149)-1)) -> 126357.1365 | G150: 16122995.14
A151: 114 | B151: 2031-02-15 | C151: 16122995.14 | D151: =IF(A151="",IF(A150="","",SUM(D$38:D150)),IF(A151=$D$23*12,D$38+$D$21,D$38)) -> 173408.6228 | E151: =IF($A151="",IF($A150="","",SUM(E$38:E150)),D151-F151) -> 47419.1594 | F151: =IF($A151="",IF($A150="","",SUM(F$38:F150)),C151*((1+'kalkulációs feltételek'!$A$56)^(B151-B150)-1)) -> 125989.4634 | G151: 16075575.98
A152: 115 | B152: 2031-03-15 | C152: 16075575.98 | D152: =IF(A152="",IF(A151="","",SUM(D$38:D151)),IF(A152=$D$23*12,D$38+$D$21,D$38)) -> 173408.6228 | E152: =IF($A152="",IF($A151="","",SUM(E$38:E151)),D152-F152) -> 59989.15414 | F152: =IF($A152="",IF($A151="","",SUM(F$38:F151)),C152*((1+'kalkulációs feltételek'!$A$56)^(B152-B151)-1)) -> 113419.4687 | G152: 16015586.82
A153: 116 | B153: 2031-04-15 | C153: 16015586.82 | D153: =IF(A153="",IF(A152="","",SUM(D$38:D152)),IF(A153=$D$23*12,D$38+$D$21,D$38)) -> 173408.6228 | E153: =IF($A153="",IF($A152="","",SUM(E$38:E152)),D153-F153) -> 48258.47714 | F153: =IF($A153="",IF($A152="","",SUM(F$38:F152)),C153*((1+'kalkulációs feltételek'!$A$56)^(B153-B152)-1)) -> 125150.1457 | G153: 15967328.34
A154: 117 | B154: 2031-05-15 | C154: 15967328.34 | D154: =IF(A154="",IF(A153="","",SUM(D$38:D153)),IF(A154=$D$23*12,D$38+$D$21,D$38)) -> 173408.6228 | E154: =IF($A154="",IF($A153="","",SUM(E$38:E153)),D154-F154) -> 52675.69671 | F154: =IF($A154="",IF($A153="","",SUM(F$38:F153)),C154*((1+'kalkulációs feltételek'!$A$56)^(B154-B153)-1)) -> 120732.9261 | G154: 15914652.65
A155: 118 | B155: 2031-06-15 | C155: 15914652.65 | D155: =IF(A155="",IF(A154="","",SUM(D$38:D154)),IF(A155=$D$23*12,D$38+$D$21,D$38)) -> 173408.6228 | E155: =IF($A155="",IF($A154="","",SUM(E$38:E154)),D155-F155) -> 49047.20419 | F155: =IF($A155="",IF($A154="","",SUM(F$38:F154)),C155*((1+'kalkulációs feltételek'!$A$56)^(B155-B154)-1)) -> 124361.4186 | G155: 15865605.44
A156: 119 | B156: 2031-07-15 | C156: 15865605.44 | D156: =IF(A156="",IF(A155="","",SUM(D$38:D155)),IF(A156=$D$23*12,D$38+$D$21,D$38)) -> 173408.6228 | E156: =IF($A156="",IF($A155="","",SUM(E$38:E155)),D156-F156) -> 53444.84877 | F156: =IF($A156="",IF($A155="","",SUM(F$38:F155)),C156*((1+'kalkulációs feltételek'!$A$56)^(B156-B155)-1)) -> 119963.7741 | G156: 15812160.59
A157: 120 | B157: 2031-08-15 | C157: 15812160.59 | D157: =IF(A157="",IF(A156="","",SUM(D$38:D156)),IF(A157=$D$23*12,D$38+$D$21,D$38)) -> 173408.6228 | E157: =IF($A157="",IF($A156="","",SUM(E$38:E156)),D157-F157) -> 49848.10493 | F157: =IF($A157="",IF($A156="","",SUM(F$38:F156)),C157*((1+'kalkulációs feltételek'!$A$56)^(B157-B156)-1)) -> 123560.5179 | G157: 15762312.49
A158: 121 | B158: 2031-09-15 | C158: 15762312.49 | D158: =IF(A158="",IF(A157="","",SUM(D$38:D157)),IF(A158=$D$23*12,D$38+$D$21,D$38)) -> 173408.6228 | E158: =IF($A158="",IF($A157="","",SUM(E$38:E157)),D158-F158) -> 50237.63156 | F158: =IF($A158="",IF($A157="","",SUM(F$38:F157)),C158*((1+'kalkulációs feltételek'!$A$56)^(B158-B157)-1)) -> 123170.9913 | G158: 15712074.86
A159: 122 | B159: 2031-10-15 | C159: 15712074.86 | D159: =IF(A159="",IF(A158="","",SUM(D$38:D158)),IF(A159=$D$23*12,D$38+$D$21,D$38)) -> 173408.6228 | E159: =IF($A159="",IF($A158="","",SUM(E$38:E158)),D159-F159) -> 54605.73157 | F159: =IF($A159="",IF($A158="","",SUM(F$38:F158)),C159*((1+'kalkulációs feltételek'!$A$56)^(B159-B158)-1)) -> 118802.8913 | G159: 15657469.13
A160: 123 | B160: 2031-11-15 | C160: 15657469.13 | D160: =IF(A160="",IF(A159="","",SUM(D$38:D159)),IF(A160=$D$23*12,D$38+$D$21,D$38)) -> 173408.6228 | E160: =IF($A160="",IF($A159="","",SUM(E$38:E159)),D160-F160) -> 51056.90608 | F160: =IF($A160="",IF($A159="","",SUM(F$38:F159)),C160*((1+'kalkulációs feltételek'!$A$56)^(B160-B159)-1)) -> 122351.7168 | G160: 15606412.22
A161: 124 | B161: 2031-12-15 | C161: 15606412.22 | D161: =IF(A161="",IF(A160="","",SUM(D$38:D160)),IF(A161=$D$23*12,D$38+$D$21,D$38)) -> 173408.6228 | E161: =IF($A161="",IF($A160="","",SUM(E$38:E160)),D161-F161) -> 55404.67296 | F161: =IF($A161="",IF($A160="","",SUM(F$38:F160)),C161*((1+'kalkulációs feltételek'!$A$56)^(B161-B160)-1)) -> 118003.9499 | G161: 15551007.55
A162: 125 | B162: 2032-01-15 | C162: 15551007.55 | D162: =IF(A162="",IF(A161="","",SUM(D$38:D161)),IF(A162=$D$23*12,D$38+$D$21,D$38)) -> 173408.6228 | E162: =IF($A162="",IF($A161="","",SUM(E$38:E161)),D162-F162) -> 51888.82577 | F162: =IF($A162="",IF($A161="","",SUM(F$38:F161)),C162*((1+'kalkulációs feltételek'!$A$56)^(B162-B161)-1)) -> 121519.7971 | G162: 15499118.72
A163: 126 | B163: 2032-02-15 | C163: 15499118.72 | D163: =IF(A163="",IF(A162="","",SUM(D$38:D162)),IF(A163=$D$23*12,D$38+$D$21,D$38)) -> 173408.6228 | E163: =IF($A163="",IF($A162="","",SUM(E$38:E162)),D163-F163) -> 52294.29915 | F163: =IF($A163="",IF($A162="","",SUM(F$38:F162)),C163*((1+'kalkulációs feltételek'!$A$56)^(B163-B162)-1)) -> 121114.3237 | G163: 15446824.42
A164: 127 | B164: 2032-03-15 | C164: 15446824.42 | D164: =IF(A164="",IF(A163="","",SUM(D$38:D163)),IF(A164=$D$23*12,D$38+$D$21,D$38)) -> 173408.6228 | E164: =IF($A164="",IF($A163="","",SUM(E$38:E163)),D164-F164) -> 60518.78941 | F164: =IF($A164="",IF($A163="","",SUM(F$38:F163)),C164*((1+'kalkulációs feltételek'!$A$56)^(B164-B163)-1)) -> 112889.8334 | G164: 15386305.63
A165: 128 | B165: 2032-04-15 | C165: 15386305.63 | D165: =IF(A165="",IF(A164="","",SUM(D$38:D164)),IF(A165=$D$23*12,D$38+$D$21,D$38)) -> 173408.6228 | E165: =IF($A165="",IF($A164="","",SUM(E$38:E164)),D165-F165) -> 53175.85127 | F165: =IF($A165="",IF($A164="","",SUM(F$38:F164)),C165*((1+'kalkulációs feltételek'!$A$56)^(B165-B164)-1)) -> 120232.7716 | G165: 15333129.78
A166: 129 | B166: 2032-05-15 | C166: 15333129.78 | D166: =IF(A166="",IF(A165="","",SUM(D$38:D165)),IF(A166=$D$23*12,D$38+$D$21,D$38)) -> 173408.6228 | E166: =IF($A166="",IF($A165="","",SUM(E$38:E165)),D166-F166) -> 57471.02919 | F166: =IF($A166="",IF($A165="","",SUM(F$38:F165)),C166*((1+'kalkulációs feltételek'!$A$56)^(B166-B165)-1)) -> 115937.5936 | G166: 15275658.75
A167: =IF(A166="","",IF(A166+1<=$D$23*12,A166+1,"")) -> 130 | B167: =IF(A167="",IF(A166 = $D$23*12,"Összesen",""),EDATE(B166,1)) -> 2032-06-15 | C167: =IF($A167="","",G166) -> 15275658.75 | D167: =IF(A167="",IF(A166="","",SUM(D$38:D166)),IF(A167=$D$23*12,D$38+$D$21,D$38)) -> 173408.6228 | E167: =IF($A167="",IF($A166="","",SUM(E$38:E166)),D167-F167) -> 54040.47605 | F167: =IF($A167="",IF($A166="","",SUM(F$38:F166)),C167*((1+'kalkulációs feltételek'!$A$56)^(B167-B166)-1)) -> 119368.1468 | G167: =IF($A167="","",C167-E167) -> 15221618.28
A168: 131 | B168: 2032-07-15 | C168: 15221618.28 | D168: =IF(A168="",IF(A167="","",SUM(D$38:D167)),IF(A168=$D$23*12,D$38+$D$21,D$38)) -> 173408.6228 | E168: =IF($A168="",IF($A167="","",SUM(E$38:E167)),D168-F168) -> 58314.19531 | F168: =IF($A168="",IF($A167="","",SUM(F$38:F167)),C168*((1+'kalkulációs feltételek'!$A$56)^(B168-B167)-1)) -> 115094.4275 | G168: 15163304.08
A169: 132 | B169: 2032-08-15 | C169: 15163304.08 | D169: =IF(A169="",IF(A168="","",SUM(D$38:D168)),IF(A169=$D$23*12,D$38+$D$21,D$38)) -> 173408.6228 | E169: =IF($A169="",IF($A168="","",SUM(E$38:E168)),D169-F169) -> 54918.44597 | F169: =IF($A169="",IF($A168="","",SUM(F$38:F168)),C169*((1+'kalkulációs feltételek'!$A$56)^(B169-B168)-1)) -> 118490.1769 | G169: 15108385.64
A170: 133 | B170: 2032-09-15 | C170: 15108385.64 | D170: =IF(A170="",IF(A169="","",SUM(D$38:D169)),IF(A170=$D$23*12,D$38+$D$21,D$38)) -> 173408.6228 | E170: =IF($A170="",IF($A169="","",SUM(E$38:E169)),D170-F170) -> 55347.59362 | F170: =IF($A170="",IF($A169="","",SUM(F$38:F169)),C170*((1+'kalkulációs feltételek'!$A$56)^(B170-B169)-1)) -> 118061.0292 | G170: 15053038.04
A171: 134 | B171: 2032-10-15 | C171: 15053038.04 | D171: =IF(A171="",IF(A170="","",SUM(D$38:D170)),IF(A171=$D$23*12,D$38+$D$21,D$38)) -> 173408.6228 | E171: =IF($A171="",IF($A170="","",SUM(E$38:E170)),D171-F171) -> 59588.87224 | F171: =IF($A171="",IF($A170="","",SUM(F$38:F170)),C171*((1+'kalkulációs feltételek'!$A$56)^(B171-B170)-1)) -> 113819.7506 | G171: 14993449.17
A172: 135 | B172: 2032-11-15 | C172: 14993449.17 | D172: =IF(A172="",IF(A171="","",SUM(D$38:D171)),IF(A172=$D$23*12,D$38+$D$21,D$38)) -> 173408.6228 | E172: =IF($A172="",IF($A171="","",SUM(E$38:E171)),D172-F172) -> 56245.73839 | F172: =IF($A172="",IF($A171="","",SUM(F$38:F171)),C172*((1+'kalkulációs feltételek'!$A$56)^(B172-B171)-1)) -> 117162.8844 | G172: 14937203.43
A173: 136 | B173: 2032-12-15 | C173: 14937203.43 | D173: =IF(A173="",IF(A172="","",SUM(D$38:D172)),IF(A173=$D$23*12,D$38+$D$21,D$38)) -> 173408.6228 | E173: =IF($A173="",IF($A172="","",SUM(E$38:E172)),D173-F173) -> 60464.72643 | F173: =IF($A173="",IF($A172="","",SUM(F$38:F172)),C173*((1+'kalkulációs feltételek'!$A$56)^(B173-B172)-1)) -> 112943.8964 | G173: 14876738.7
A174: 137 | B174: 2033-01-15 | C174: 14876738.7 | D174: =IF(A174="",IF(A173="","",SUM(D$38:D173)),IF(A174=$D$23*12,D$38+$D$21,D$38)) -> 173408.6228 | E174: =IF($A174="",IF($A173="","",SUM(E$38:E173)),D174-F174) -> 57157.74566 | F174: =IF($A174="",IF($A173="","",SUM(F$38:F173)),C174*((1+'kalkulációs feltételek'!$A$56)^(B174-B173)-1)) -> 116250.8772 | G174: 14819580.96
A175: 138 | B175: 2033-02-15 | C175: 14819580.96 | D175: =IF(A175="",IF(A174="","",SUM(D$38:D174)),IF(A175=$D$23*12,D$38+$D$21,D$38)) -> 173408.6228 | E175: =IF($A175="",IF($A174="","",SUM(E$38:E174)),D175-F175) -> 57604.39181 | F175: =IF($A175="",IF($A174="","",SUM(F$38:F174)),C175*((1+'kalkulációs feltételek'!$A$56)^(B175-B174)-1)) -> 115804.231 | G175: 14761976.57
A176: 139 | B176: 2033-03-15 | C176: 14761976.57 | D176: =IF(A176="",IF(A175="","",SUM(D$38:D175)),IF(A176=$D$23*12,D$38+$D$21,D$38)) -> 173408.6228 | E176: =IF($A176="",IF($A175="","",SUM(E$38:E175)),D176-F176) -> 69257.11115 | F176: =IF($A176="",IF($A175="","",SUM(F$38:F175)),C176*((1+'kalkulációs feltételek'!$A$56)^(B176-B175)-1)) -> 104151.5117 | G176: 14692719.46
A177: 140 | B177: 2033-04-15 | C177: 14692719.46 | D177: =IF(A177="",IF(A176="","",SUM(D$38:D176)),IF(A177=$D$23*12,D$38+$D$21,D$38)) -> 173408.6228 | E177: =IF($A177="",IF($A176="","",SUM(E$38:E176)),D177-F177) -> 58595.72206 | F177: =IF($A177="",IF($A176="","",SUM(F$38:F176)),C177*((1+'kalkulációs feltételek'!$A$56)^(B177-B176)-1)) -> 114812.9008 | G177: 14634123.73
A178: 141 | B178: 2033-05-15 | C178: 14634123.73 | D178: =IF(A178="",IF(A177="","",SUM(D$38:D177)),IF(A178=$D$23*12,D$38+$D$21,D$38)) -> 173408.6228 | E178: =IF($A178="",IF($A177="","",SUM(E$38:E177)),D178-F178) -> 62756.38712 | F178: =IF($A178="",IF($A177="","",SUM(F$38:F177)),C178*((1+'kalkulációs feltételek'!$A$56)^(B178-B177)-1)) -> 110652.2357 | G178: 14571367.35
A179: 142 | B179: 2033-06-15 | C179: 14571367.35 | D179: =IF(A179="",IF(A178="","",SUM(D$38:D178)),IF(A179=$D$23*12,D$38+$D$21,D$38)) -> 173408.6228 | E179: =IF($A179="",IF($A178="","",SUM(E$38:E178)),D179-F179) -> 59544.0004 | F179: =IF($A179="",IF($A178="","",SUM(F$38:F178)),C179*((1+'kalkulációs feltételek'!$A$56)^(B179-B178)-1)) -> 113864.6224 | G179: 14511823.35
A180: 143 | B180: 2033-07-15 | C180: 14511823.35 | D180: =IF(A180="",IF(A179="","",SUM(D$38:D179)),IF(A180=$D$23*12,D$38+$D$21,D$38)) -> 173408.6228 | E180: =IF($A180="",IF($A179="","",SUM(E$38:E179)),D180-F180) -> 63681.13066 | F180: =IF($A180="",IF($A179="","",SUM(F$38:F179)),C180*((1+'kalkulációs feltételek'!$A$56)^(B180-B179)-1)) -> 109727.4922 | G180: 14448142.22
A181: 144 | B181: 2033-08-15 | C181: 14448142.22 | D181: =IF(A181="",IF(A180="","",SUM(D$38:D180)),IF(A181=$D$23*12,D$38+$D$21,D$38)) -> 173408.6228 | E181: =IF($A181="",IF($A180="","",SUM(E$38:E180)),D181-F181) -> 60506.91505 | F181: =IF($A181="",IF($A180="","",SUM(F$38:F180)),C181*((1+'kalkulációs feltételek'!$A$56)^(B181-B180)-1)) -> 112901.7078 | G181: 14387635.3
A182: 145 | B182: 2033-09-15 | C182: 14387635.3 | D182: =IF(A182="",IF(A181="","",SUM(D$38:D181)),IF(A182=$D$23*12,D$38+$D$21,D$38)) -> 173408.6228 | E182: =IF($A182="",IF($A181="","",SUM(E$38:E181)),D182-F182) -> 60979.73251 | F182: =IF($A182="",IF($A181="","",SUM(F$38:F181)),C182*((1+'kalkulációs feltételek'!$A$56)^(B182-B181)-1)) -> 112428.8903 | G182: 14326655.57
A183: 146 | B183: 2033-10-15 | C183: 14326655.57 | D183: =IF(A183="",IF(A182="","",SUM(D$38:D182)),IF(A183=$D$23*12,D$38+$D$21,D$38)) -> 173408.6228 | E183: =IF($A183="",IF($A182="","",SUM(E$38:E182)),D183-F183) -> 65081.23011 | F183: =IF($A183="",IF($A182="","",SUM(F$38:F182)),C183*((1+'kalkulációs feltételek'!$A$56)^(B183-B182)-1)) -> 108327.3927 | G183: 14261574.34
A184: 147 | B184: 2033-11-15 | C184: 14261574.34 | D184: =IF(A184="",IF(A183="","",SUM(D$38:D183)),IF(A184=$D$23*12,D$38+$D$21,D$38)) -> 173408.6228 | E184: =IF($A184="",IF($A183="","",SUM(E$38:E183)),D184-F184) -> 61964.80712 | F184: =IF($A184="",IF($A183="","",SUM(F$38:F183)),C184*((1+'kalkulációs feltételek'!$A$56)^(B184-B183)-1)) -> 111443.8157 | G184: 14199609.53
A185: 148 | B185: 2033-12-15 | C185: 14199609.53 | D185: =IF(A185="",IF(A184="","",SUM(D$38:D184)),IF(A185=$D$23*12,D$38+$D$21,D$38)) -> 173408.6228 | E185: =IF($A185="",IF($A184="","",SUM(E$38:E184)),D185-F185) -> 66041.85668 | F185: =IF($A185="",IF($A184="","",SUM(F$38:F184)),C185*((1+'kalkulációs feltételek'!$A$56)^(B185-B184)-1)) -> 107366.7662 | G185: 14133567.67
A186: 149 | B186: 2034-01-15 | C186: 14133567.67 | D186: =IF(A186="",IF(A185="","",SUM(D$38:D185)),IF(A186=$D$23*12,D$38+$D$21,D$38)) -> 173408.6228 | E186: =IF($A186="",IF($A185="","",SUM(E$38:E185)),D186-F186) -> 62965.08596 | F186: =IF($A186="",IF($A185="","",SUM(F$38:F185)),C186*((1+'kalkulációs feltételek'!$A$56)^(B186-B185)-1)) -> 110443.5369 | G186: 14070602.59
A187: 150 | B187: 2034-02-15 | C187: 14070602.59 | D187: =IF(A187="",IF(A186="","",SUM(D$38:D186)),IF(A187=$D$23*12,D$38+$D$21,D$38)) -> 173408.6228 | E187: =IF($A187="",IF($A186="","",SUM(E$38:E186)),D187-F187) -> 63457.11224 | F187: =IF($A187="",IF($A186="","",SUM(F$38:F186)),C187*((1+'kalkulációs feltételek'!$A$56)^(B187-B186)-1)) -> 109951.5106 | G187: 14007145.48
A188: 151 | B188: 2034-03-15 | C188: 14007145.48 | D188: =IF(A188="",IF(A187="","",SUM(D$38:D187)),IF(A188=$D$23*12,D$38+$D$21,D$38)) -> 173408.6228 | E188: =IF($A188="",IF($A187="","",SUM(E$38:E187)),D188-F188) -> 74582.73938 | F188: =IF($A188="",IF($A187="","",SUM(F$38:F187)),C188*((1+'kalkulációs feltételek'!$A$56)^(B188-B187)-1)) -> 98825.88345 | G188: 13932562.74
A189: 152 | B189: 2034-04-15 | C189: 13932562.74 | D189: =IF(A189="",IF(A188="","",SUM(D$38:D188)),IF(A189=$D$23*12,D$38+$D$21,D$38)) -> 173408.6228 | E189: =IF($A189="",IF($A188="","",SUM(E$38:E188)),D189-F189) -> 64535.79314 | F189: =IF($A189="",IF($A188="","",SUM(F$38:F188)),C189*((1+'kalkulációs feltételek'!$A$56)^(B189-B188)-1)) -> 108872.8297 | G189: 13868026.94
A190: 153 | B190: 2034-05-15 | C190: 13868026.94 | D190: =IF(A190="",IF(A189="","",SUM(D$38:D189)),IF(A190=$D$23*12,D$38+$D$21,D$38)) -> 173408.6228 | E190: =IF($A190="",IF($A189="","",SUM(E$38:E189)),D190-F190) -> 68549.03478 | F190: =IF($A190="",IF($A189="","",SUM(F$38:F189)),C190*((1+'kalkulációs feltételek'!$A$56)^(B190-B189)-1)) -> 104859.588 | G190: 13799477.91
A191: 154 | B191: 2034-06-15 | C191: 13799477.91 | D191: =IF(A191="",IF(A190="","",SUM(D$38:D190)),IF(A191=$D$23*12,D$38+$D$21,D$38)) -> 173408.6228 | E191: =IF($A191="",IF($A190="","",SUM(E$38:E190)),D191-F191) -> 65575.75413 | F191: =IF($A191="",IF($A190="","",SUM(F$38:F190)),C191*((1+'kalkulációs feltételek'!$A$56)^(B191-B190)-1)) -> 107832.8687 | G191: 13733902.15
A192: 155 | B192: 2034-07-15 | C192: 13733902.15 | D192: =IF(A192="",IF(A191="","",SUM(D$38:D191)),IF(A192=$D$23*12,D$38+$D$21,D$38)) -> 173408.6228 | E192: =IF($A192="",IF($A191="","",SUM(E$38:E191)),D192-F192) -> 69563.18555 | F192: =IF($A192="",IF($A191="","",SUM(F$38:F191)),C192*((1+'kalkulációs feltételek'!$A$56)^(B192-B191)-1)) -> 103845.4373 | G192: 13664338.97
A193: 156 | B193: 2034-08-15 | C193: 13664338.97 | D193: =IF(A193="",IF(A192="","",SUM(D$38:D192)),IF(A193=$D$23*12,D$38+$D$21,D$38)) -> 173408.6228 | E193: =IF($A193="",IF($A192="","",SUM(E$38:E192)),D193-F193) -> 66631.76652 | F193: =IF($A193="",IF($A192="","",SUM(F$38:F192)),C193*((1+'kalkulációs feltételek'!$A$56)^(B193-B192)-1)) -> 106776.8563 | G193: 13597707.2
A194: 157 | B194: 2034-09-15 | C194: 13597707.2 | D194: =IF(A194="",IF(A193="","",SUM(D$38:D193)),IF(A194=$D$23*12,D$38+$D$21,D$38)) -> 173408.6228 | E194: =IF($A194="",IF($A193="","",SUM(E$38:E193)),D194-F194) -> 67152.44524 | F194: =IF($A194="",IF($A193="","",SUM(F$38:F193)),C194*((1+'kalkulációs feltételek'!$A$56)^(B194-B193)-1)) -> 106256.1776 | G194: 13530554.76
A195: 158 | B195: 2034-10-15 | C195: 13530554.76 | D195: =IF(A195="",IF(A194="","",SUM(D$38:D194)),IF(A195=$D$23*12,D$38+$D$21,D$38)) -> 173408.6228 | E195: =IF($A195="",IF($A194="","",SUM(E$38:E194)),D195-F195) -> 71100.74561 | F195: =IF($A195="",IF($A194="","",SUM(F$38:F194)),C195*((1+'kalkulációs feltételek'!$A$56)^(B195-B194)-1)) -> 102307.8772 | G195: 13459454.01
A196: 159 | B196: 2034-11-15 | C196: 13459454.01 | D196: =IF(A196="",IF(A195="","",SUM(D$38:D195)),IF(A196=$D$23*12,D$38+$D$21,D$38)) -> 173408.6228 | E196: =IF($A196="",IF($A195="","",SUM(E$38:E195)),D196-F196) -> 68232.79323 | F196: =IF($A196="",IF($A195="","",SUM(F$38:F195)),C196*((1+'kalkulációs feltételek'!$A$56)^(B196-B195)-1)) -> 105175.8296 | G196: 13391221.22
A197: 160 | B197: 2034-12-15 | C197: 13391221.22 | D197: =IF(A197="",IF(A196="","",SUM(D$38:D196)),IF(A197=$D$23*12,D$38+$D$21,D$38)) -> 173408.6228 | E197: =IF($A197="",IF($A196="","",SUM(E$38:E196)),D197-F197) -> 72154.28102 | F197: =IF($A197="",IF($A196="","",SUM(F$38:F196)),C197*((1+'kalkulációs feltételek'!$A$56)^(B197-B196)-1)) -> 101254.3418 | G197: 13319066.94
A198: 161 | B198: 2035-01-15 | C198: 13319066.94 | D198: =IF(A198="",IF(A197="","",SUM(D$38:D197)),IF(A198=$D$23*12,D$38+$D$21,D$38)) -> 173408.6228 | E198: =IF($A198="",IF($A197="","",SUM(E$38:E197)),D198-F198) -> 69329.81596 | F198: =IF($A198="",IF($A197="","",SUM(F$38:F197)),C198*((1+'kalkulációs feltételek'!$A$56)^(B198-B197)-1)) -> 104078.8069 | G198: 13249737.12
A199: 162 | B199: 2035-02-15 | C199: 13249737.12 | D199: =IF(A199="",IF(A198="","",SUM(D$38:D198)),IF(A199=$D$23*12,D$38+$D$21,D$38)) -> 173408.6228 | E199: =IF($A199="",IF($A198="","",SUM(E$38:E198)),D199-F199) -> 69871.57797 | F199: =IF($A199="",IF($A198="","",SUM(F$38:F198)),C199*((1+'kalkulációs feltételek'!$A$56)^(B199-B198)-1)) -> 103537.0449 | G199: 13179865.54
A200: 163 | B200: 2035-03-15 | C200: 13179865.54 | D200: =IF(A200="",IF(A199="","",SUM(D$38:D199)),IF(A200=$D$23*12,D$38+$D$21,D$38)) -> 173408.6228 | E200: =IF($A200="",IF($A199="","",SUM(E$38:E199)),D200-F200) -> 80419.52249 | F200: =IF($A200="",IF($A199="","",SUM(F$38:F199)),C200*((1+'kalkulációs feltételek'!$A$56)^(B200-B199)-1)) -> 92989.10034 | G200: 13099446.02
A201: 164 | B201: 2035-04-15 | C201: 13099446.02 | D201: =IF(A201="",IF(A200="","",SUM(D$38:D200)),IF(A201=$D$23*12,D$38+$D$21,D$38)) -> 173408.6228 | E201: =IF($A201="",IF($A200="","",SUM(E$38:E200)),D201-F201) -> 71045.99345 | F201: =IF($A201="",IF($A200="","",SUM(F$38:F200)),C201*((1+'kalkulációs feltételek'!$A$56)^(B201-B200)-1)) -> 102362.6294 | G201: 13028400.03
A202: 165 | B202: 2035-05-15 | C202: 13028400.03 | D202: =IF(A202="",IF(A201="","",SUM(D$38:D201)),IF(A202=$D$23*12,D$38+$D$21,D$38)) -> 173408.6228 | E202: =IF($A202="",IF($A201="","",SUM(E$38:E201)),D202-F202) -> 74897.66195 | F202: =IF($A202="",IF($A201="","",SUM(F$38:F201)),C202*((1+'kalkulációs feltételek'!$A$56)^(B202-B201)-1)) -> 98510.96089 | G202: 12953502.37
A203: 166 | B203: 2035-06-15 | C203: 12953502.37 | D203: =IF(A203="",IF(A202="","",SUM(D$38:D202)),IF(A203=$D$23*12,D$38+$D$21,D$38)) -> 173408.6228 | E203: =IF($A203="",IF($A202="","",SUM(E$38:E202)),D203-F203) -> 72186.43682 | F203: =IF($A203="",IF($A202="","",SUM(F$38:F202)),C203*((1+'kalkulációs feltételek'!$A$56)^(B203-B202)-1)) -> 101222.186 | G203: 12881315.93
A204: 167 | B204: 2035-07-15 | C204: 12881315.93 | D204: =IF(A204="",IF(A203="","",SUM(D$38:D203)),IF(A204=$D$23*12,D$38+$D$21,D$38)) -> 173408.6228 | E204: =IF($A204="",IF($A203="","",SUM(E$38:E203)),D204-F204) -> 76009.80126 | F204: =IF($A204="",IF($A203="","",SUM(F$38:F203)),C204*((1+'kalkulációs feltételek'!$A$56)^(B204-B203)-1)) -> 97398.82157 | G204: 12805306.13
A205: 168 | B205: 2035-08-15 | C205: 12805306.13 | D205: =IF(A205="",IF(A204="","",SUM(D$38:D204)),IF(A205=$D$23*12,D$38+$D$21,D$38)) -> 173408.6228 | E205: =IF($A205="",IF($A204="","",SUM(E$38:E204)),D205-F205) -> 73344.48248 | F205: =IF($A205="",IF($A204="","",SUM(F$38:F204)),C205*((1+'kalkulációs feltételek'!$A$56)^(B205-B204)-1)) -> 100064.1404 | G205: 12731961.65
A206: 169 | B206: 2035-09-15 | C206: 12731961.65 | D206: =IF(A206="",IF(A205="","",SUM(D$38:D205)),IF(A206=$D$23*12,D$38+$D$21,D$38)) -> 173408.6228 | E206: =IF($A206="",IF($A205="","",SUM(E$38:E205)),D206-F206) -> 73917.61619 | F206: =IF($A206="",IF($A205="","",SUM(F$38:F205)),C206*((1+'kalkulációs feltételek'!$A$56)^(B206-B205)-1)) -> 99491.00665 | G206: 12658044.03
A207: 170 | B207: 2035-10-15 | C207: 12658044.03 | D207: =IF(A207="",IF(A206="","",SUM(D$38:D206)),IF(A207=$D$23*12,D$38+$D$21,D$38)) -> 173408.6228 | E207: =IF($A207="",IF($A206="","",SUM(E$38:E206)),D207-F207) -> 77698.01542 | F207: =IF($A207="",IF($A206="","",SUM(F$38:F206)),C207*((1+'kalkulációs feltételek'!$A$56)^(B207-B206)-1)) -> 95710.60741 | G207: 12580346.01
... 132 more rows

Sheet kalkulációs feltételek (hidden)
A1: 1 havi BUBOR
A2: 2021-08-02 | B2: 0.012 | C2: havonta frissítendő a hónap első napját 2 nappal megelőző értékre
A4: Kamatfelár
A5: 0 | B5: 0.075
A6: 10.1 | B6: 0.0775
A7: 15.1 | B7: 0.08
A9: Maradványérték maximum
A10: 0 | B10: 0.3
A11: 10.1 | B11: 0.2
A12: 15.1 | B12: 0.1
A14: Maximális futamidő | B14: 20 | C14: év
A16: Minimum önerő | B16: 0.3
A18: Minimum finanszírozott összeg | B18: 10000000
A20: Minimális vételár (kerekítve) | B20: =ROUNDUP(C20/1000000,1)*1000000 -> 14300000 | C20: =B18/(1-B16) -> 14285714.29
A22: Szerződéskötési díj | B22: 0.02
A23: Illték | B23: 0.02
A24: Ügyvédi díj | B24: 0.005 | C24: minimum: | D24: 100000
A26: Tervezett folyósítás | B26: első törlesztés
A27: 2021-01-01 | B27: 2021-02-15
A28: 2021-02-15 | B28: 2021-03-15
A29: 2021-03-15 | B29: 2021-04-15
A30: 2021-04-15 | B30: 2021-05-15
A31: 2021-05-15 | B31: 2021-06-15
A32: 2021-06-15 | B32: 2021-07-15
A33: 2021-07-15 | B33: 2021-08-15
A34: 2021-08-15 | B34: 2021-09-15
A35: 2021-09-15 | B35: 2021-10-15
A36: 2021-10-15 | B36: 2021-11-15
A37: 2021-11-15 | B37: 2021-12-15
A38: 2021-12-15 | B38: 2022-01-15
A39: 2022-01-15 | B39: 2022-02-15
A40: 2022-02-15 | B40: 2022-03-15
A41: 2022-03-15 | B41: 2022-04-15
A42: 2022-04-15 | B42: 2022-05-15
A43: 2022-05-15 | B43: 2022-06-15
A44: 2022-06-15 | B44: 2022-07-15
A45: 2022-07-15 | B45: 2022-08-15
A46: 2022-08-15 | B46: 2022-09-15
A47: 2022-09-15 | B47: 2022-10-15
A48: 2022-10-15 | B48: 2022-11-15
A49: 2022-11-15 | B49: 2022-12-15
A50: 2022-12-15 | B50: 2023-01-15
A55: napi kamatráta
A56: =((1+'Lízing kalkuláció'!D22/12)^(12/365))-1 -> 0.0002511250213 | B56: ell: | C56: ='Lízing kalkuláció'!D22/12 -> 0.007666666667
A59: részlet függvény eredménye | B59: =PMT(C56,'Lízing kalkuláció'!D23*12,-'Lízing kalkuláció'!D19,'Lízing kalkuláció'!D21) -> 179606.5013
A61: futamidő végén fennálló tőke | B61: =VLOOKUP('Lízing kalkuláció'!D23*12,'Lízing kalkuláció'!$A$38:$G$339,7,0) -> 3492296.757

Sheet segéd (hidden)
A1: finanszírozott összeg | B1: ='Lízing kalkuláció'!D8 -> 20000000
A2: tőketörlesztés összesen | B2: =ROUND(SUM('Lízing kalkuláció'!$E$38:$E$339)-VLOOKUP("összesen",'Lízing kalkuláció'!$B$38:$E$339,4,0),0) -> 16507703
A3: eltérés | B3: =B1-B2 -> 3492297
